Workbook

Sheet TD SUMMARY for pivot (hidden)
A1: Site | B1: Name | C1: Year | D1: Uniform Rate of Progress-20% Worst Days | E1: Haze Index - 20% Worst Days | F1: Haze Index-5-year-20% Worst Days | G1: Haze Index - 20% Clearest Days | H1: Haze Index-5-year-20% Clearest Days | I1: No Degradation-20% Clearest Days | J1: Haze Index - 20% Most Impaired Days | K1: Haze Index-5-year-20% Most Impaired Days | L1: Uniform Rate of Progress-20% Most Impaired Days | M1: URP worst rate | N1: URP IMP rate | O1: 20% Worst NAT | P1: 20% Most Impaired NAT | Q1: Straight line path to RPG - 20% Clearest Days | R1: Straight line path to RPG - 20% Most Impaired Days | S1: Straight line path to RPG - 20% Worst Days | T1: Reasonable Progress Goal - 20% Most Impaired | U1: Reasonable Progress Goal - 20% Worst
A2: ACAD | B2: Acadia National Park, ME | C2: 2000 | E2: 21.63668429 | G2: 8.9009695 | J2: 20.7527681 | M2: 0.1743076755 | N2: 0.1937790078 | O2: 12.43373718 | P2: 10.38749246
A3: ACAD | B3: Acadia National Park, ME | C3: 2001 | E3: 23.2786752 | G3: 8.874270833 | J3: 22.3742984
A4: ACAD | B4: Acadia National Park, ME | C4: 2002 | E4: 23.913308 | G4: 8.770072917 | J4: 22.9097568
A5: ACAD | B5: Acadia National Park, ME | C5: 2003 | E5: 23.64818625 | G5: 8.769720833 | J5: 22.69669375
A6: ACAD | B6: Acadia National Park, ME | C6: 2004 | D6: 22.89219771 | E6: 21.9841348 | F6: 22.89219771 | G6: 8.562797083 | H6: 8.775566233 | I6: 8.775566233 | J6: 21.3376476 | K6: 22.01423293 | L6: 22.01423293 | Q6: 8.775565896 | R6: 22.01423312 | S6: 22.89219797
A7: ACAD | B7: Acadia National Park, ME | C7: 2005 | D7: 22.71789003 | E7: 23.01144708 | F7: 23.16715027 | G7: 7.577583478 | H7: 8.510889029 | I7: 8.775566233 | J7: 21.72029875 | K7: 22.20773906 | L7: 21.82045392 | Q7: 8.673667317 | R7: 21.65322341 | S7: 22.55835639
A8: ACAD | B8: Acadia National Park, ME | C8: 2006 | D8: 22.54358236 | E8: 23.37468167 | F8: 23.18635156 | G8: 8.172888261 | H8: 8.370612514 | I8: 8.775566233 | J8: 22.68771167 | K8: 22.27042171 | L8: 21.62667491 | Q8: 8.571768738 | R8: 21.2922137 | S8: 22.22451481
A9: ACAD | B9: Acadia National Park, ME | C9: 2007 | D9: 22.36927468 | E9: 21.74489583 | F9: 22.75266913 | G9: 8.207290435 | H9: 8.258056018 | I9: 8.775566233 | J9: 20.835775 | K9: 21.85562535 | L9: 21.43289591 | Q9: 8.469870159 | R9: 20.93120398 | S9: 21.89067322
A10: ACAD | B10: Acadia National Park, ME | C10: 2008 | D10: 22.19496701 | E10: 20.2050312 | F10: 22.06403812 | G10: 7.763495833 | H10: 8.056811018 | I10: 8.775566233 | J10: 19.349384 | K10: 21.1861634 | L10: 21.2391169 | Q10: 8.36797158 | R10: 20.57019427 | S10: 21.55683164
A11: ACAD | B11: Acadia National Park, ME | C11: 2009 | D11: 22.02065933 | E11: 18.9339968 | F11: 21.45401052 | G11: 6.920979167 | H11: 7.728447435 | I11: 8.775566233 | J11: 18.1685528 | K11: 20.55234444 | L11: 21.04533789 | Q11: 8.266073001 | R11: 20.20918456 | S11: 21.22299006
A12: ACAD | B12: Acadia National Park, ME | C12: 2010 | D12: 21.84635165 | E12: 18.26606625 | F12: 20.50493435 | G12: 6.706666667 | H12: 7.554264072 | I12: 8.775566233 | J12: 17.51925167 | K12: 19.71213503 | L12: 20.85155888 | Q12: 8.164174422 | R12: 19.84817484 | S12: 20.88914848
A13: ACAD | B13: Acadia National Park, ME | C13: 2011 | D13: 21.67204398 | E13: 19.04777125 | F13: 19.63955227 | G13: 7.450556087 | H13: 7.409797638 | I13: 8.775566233 | J13: 17.30718125 | K13: 18.63602894 | L13: 20.65777987 | Q13: 8.062275843 | R13: 19.48716513 | S13: 20.5553069
A14: ACAD | B14: Acadia National Park, ME | C14: 2012 | D14: 21.4977363 | E14: 16.84477783 | F14: 18.65952867 | G14: 7.773966522 | H14: 7.323132855 | I14: 8.775566233 | J14: 15.91580391 | K14: 17.65203473 | L14: 20.46400087 | Q14: 7.960377264 | R14: 19.12615541 | S14: 20.22146531
A15: ACAD | B15: Acadia National Park, ME | C15: 2013 | D15: 21.32342863 | E15: 16.54070667 | F15: 17.92666376 | G15: 6.253866957 | H15: 7.02120708 | I15: 8.775566233 | J15: 15.31218208 | K15: 16.84459434 | L15: 20.27022186 | Q15: 7.858478685 | R15: 18.7651457 | S15: 19.88762373
A16: ACAD | B16: Acadia National Park, ME | C16: 2014 | D16: 21.14912095 | E16: 16.67546708 | F16: 17.47495782 | G16: 7.032901739 | H16: 7.043591594 | I16: 8.775566233 | J16: 15.36467792 | K16: 16.28381937 | L16: 20.07644285 | Q16: 7.756580106 | R16: 18.40413599 | S16: 19.55378215
A17: ACAD | B17: Acadia National Park, ME | C17: 2015 | D17: 20.97481328 | E17: 17.79144792 | F17: 17.38003415 | G17: 6.049556522 | H17: 6.912169565 | I17: 8.775566233 | J17: 16.0725775 | K17: 15.99448453 | L17: 19.88266384 | Q17: 7.654681527 | R17: 18.04312627 | S17: 19.21994057
A18: ACAD | B18: Acadia National Park, ME | C18: 2016 | D18: 20.8005056 | E18: 14.6322275 | F18: 16.4969254 | G18: 6.084567917 | H18: 6.638971931 | I18: 8.775566233 | J18: 13.72397083 | K18: 15.27784245 | L18: 19.68888484 | Q18: 7.552782948 | R18: 17.68211656 | S18: 18.88609899
A19: ACAD | B19: Acadia National Park, ME | C19: 2017 | D19: 20.62619793 | E19: 15.92501625 | F19: 16.31297308 | G19: 7.182486957 | H19: 6.520676018 | I19: 8.775566233 | J19: 13.96605292 | K19: 14.88789225 | L19: 19.49510583 | Q19: 7.450884369 | R19: 17.32110685 | S19: 18.5522574
A20: ACAD | B20: Acadia National Park, ME | C20: 2018 | D20: 20.45189025 | E20: 14.63988652 | F20: 15.93280905 | G20: 6.535015455 | H20: 6.576905718 | I20: 8.775566233 | J20: 13.57671696 | K20: 14.54079922 | L20: 19.30132682 | Q20: 7.34898579 | R20: 16.96009713 | S20: 18.21841582
A21: ACAD | B21: Acadia National Park, ME | C21: 2019 | D21: 20.27758258 | I21: 8.775566233 | L21: 19.10754781 | Q21: 7.247087211 | R21: 16.59908742 | S21: 17.88457424
A22: ACAD | B22: Acadia National Park, ME | C22: 2020 | D22: 20.1032749 | I22: 8.775566233 | L22: 18.9137688 | Q22: 7.145188632 | R22: 16.23807771 | S22: 17.55073266
A23: ACAD | B23: Acadia National Park, ME | C23: 2021 | D23: 19.92896722 | I23: 8.775566233 | L23: 18.7199898 | Q23: 7.043290053 | R23: 15.87706799 | S23: 17.21689107
A24: ACAD | B24: Acadia National Park, ME | C24: 2022 | D24: 19.75465955 | I24: 8.775566233 | L24: 18.52621079 | Q24: 6.941391474 | R24: 15.51605828 | S24: 16.88304949
A25: ACAD | B25: Acadia National Park, ME | C25: 2023 | D25: 19.58035187 | I25: 8.775566233 | L25: 18.33243178 | Q25: 6.839492895 | R25: 15.15504857 | S25: 16.54920791
A26: ACAD | B26: Acadia National Park, ME | C26: 2024 | D26: 19.4060442 | I26: 8.775566233 | L26: 18.13865277 | Q26: 6.737594316 | R26: 14.79403885 | S26: 16.21536633
A27: ACAD | B27: Acadia National Park, ME | C27: 2025 | D27: 19.23173652 | I27: 8.775566233 | L27: 17.94487377 | Q27: 6.635695737 | R27: 14.43302914 | S27: 15.88152475
A28: ACAD | B28: Acadia National Park, ME | C28: 2026 | D28: 19.05742885 | I28: 8.775566233 | L28: 17.75109476 | Q28: 6.533797158 | R28: 14.07201943 | S28: 15.54768316
A29: ACAD | B29: Acadia National Park, ME | C29: 2027 | D29: 18.88312117 | I29: 8.775566233 | L29: 17.55731575 | Q29: 6.431898579 | R29: 13.71100971 | S29: 15.21384158
A30: ACAD | B30: Acadia National Park, ME | C30: 2028 | D30: 18.7088135 | I30: 8.775566233 | L30: 17.36353674 | Q30: 6.33 | R30: 13.35 | S30: 14.88 | T30: 13.35 | U30: 14.88
A31: BRIG | B31: Brigantine Wilderness Area, NJ | C31: 2000 | E31: 28.95484333 | G31: 14.2636855 | J31: 27.36636333 | M31: 0.2793488731 | N31: 0.2789386295 | O31: 12.24563799 | P31: 10.69391416
A32: BRIG | B32: Brigantine Wilderness Area, NJ | C32: 2001 | E32: 28.38178636 | G32: 13.82585524 | J32: 27.07211773
A33: BRIG | B33: Brigantine Wilderness Area, NJ | C33: 2002 | E33: 29.30921364 | G33: 14.83233 | J33: 26.53276864
A34: BRIG | B34: Brigantine Wilderness Area, NJ | C34: 2003 | E34: 29.79449333 | G34: 14.38665304 | J34: 28.49253917
A35: BRIG | B35: Brigantine Wilderness Area, NJ | C35: 2004 | D35: 29.00657037 | E35: 28.5925152 | F35: 29.00657037 | G35: 14.36158583 | H35: 14.33402192 | I35: 14.33402192 | J35: 27.6873708 | K35: 27.43023193 | L35: 27.43023193 | Q35: 14.33402199 | R35: 27.43023193 | S35: 29.00657052
A36: BRIG | B36: Brigantine Wilderness Area, NJ | C36: 2005 | D36: 28.7272215 | E36: 29.62453583 | F36: 29.14050887 | G36: 14.60920292 | H36: 14.40312541 | I36: 14.33402192 | J36: 28.80912333 | K36: 27.71878393 | L36: 27.1512933 | Q36: 14.17302107 | R36: 27.0360556 | S36: 28.60463008
A37: BRIG | B37: Brigantine Wilderness Area, NJ | C37: 2006 | D37: 28.44787263 | E37: 28.49617952 | F37: 29.16338751 | G37: 15.3497845 | H37: 14.70791126 | I37: 14.33402192 | J37: 26.88325952 | K37: 27.68101229 | L37: 26.87235467 | Q37: 14.01202016 | R37: 26.64187927 | S37: 28.20268964
A38: BRIG | B38: Brigantine Wilderness Area, NJ | C38: 2007 | D38: 28.16852375 | E38: 26.90958957 | F38: 28.68346269 | G38: 12.73726955 | H38: 14.28889917 | I38: 14.33402192 | J38: 26.16897522 | K38: 27.60825361 | L38: 26.59341604 | Q38: 13.85101924 | R38: 26.24770294 | S38: 27.8007492
A39: BRIG | B39: Brigantine Wilderness Area, NJ | C39: 2008 | D39: 27.88917488 | F39: 28.40570503 | H39: 14.2644607 | I39: 14.33402192 | K39: 27.38718222 | L39: 26.31447741 | Q39: 13.69001832 | R39: 25.85352661 | S39: 27.39880877
A40: BRIG | B40: Brigantine Wilderness Area, NJ | C40: 2009 | D40: 27.60982601 | E40: 24.25019417 | F40: 27.32012477 | G40: 12.78062583 | H40: 13.8692207 | I40: 14.33402192 | J40: 23.057765 | K40: 26.22978077 | L40: 26.03553879 | Q40: 13.52901741 | R40: 25.45935028 | S40: 26.99686833
A41: BRIG | B41: Brigantine Wilderness Area, NJ | C41: 2010 | D41: 27.33047714 | E41: 25.27897 | F41: 26.23373331 | G41: 11.81662208 | H41: 13.17107549 | I41: 14.33402192 | J41: 24.5091392 | K41: 25.15478474 | L41: 25.75660016 | Q41: 13.36801649 | R41: 25.06517395 | S41: 26.59492789
A42: BRIG | B42: Brigantine Wilderness Area, NJ | C42: 2011 | D42: 27.05112826 | E42: 25.83363826 | F42: 25.568098 | G42: 12.91688304 | H42: 12.56285013 | I42: 14.33402192 | J42: 22.66475217 | K42: 24.1001579 | L42: 25.47766153 | Q42: 13.20701557 | R42: 24.67099762 | S42: 26.19298745
A43: BRIG | B43: Brigantine Wilderness Area, NJ | C43: 2012 | D43: 26.77177939 | E43: 21.88349708 | F43: 24.31157488 | G43: 11.92667609 | H43: 12.36020176 | I43: 14.33402192 | J43: 20.95191583 | K43: 22.79589305 | L43: 25.1987229 | Q43: 13.04601466 | R43: 24.27682129 | S43: 25.79104701
A44: BRIG | B44: Brigantine Wilderness Area, NJ | C44: 2013 | D44: 26.49243052 | E44: 21.50777174 | F44: 23.75081425 | G44: 11.80141864 | H44: 12.24844514 | I44: 14.33402192 | J44: 20.11802565 | K44: 22.26031957 | L44: 24.91978427 | Q44: 12.88501374 | R44: 23.88264496 | S44: 25.38910657
A45: BRIG | B45: Brigantine Wilderness Area, NJ | C45: 2014 | D45: 26.21308164 | E45: 22.03180565 | F45: 23.30713655 | G45: 11.663865 | H45: 12.02509297 | I45: 14.33402192 | J45: 21.08857652 | K45: 21.86648188 | L45: 24.64084564 | Q45: 12.72401283 | R45: 23.48846863 | S45: 24.98716614
A46: BRIG | B46: Brigantine Wilderness Area, NJ | C46: 2015 | D46: 25.93373277 | E46: 21.83752292 | F46: 22.61884713 | G46: 11.4413487 | H46: 11.95003829 | I46: 14.33402192 | J46: 20.8380025 | K46: 21.13225454 | L46: 24.36190701 | Q46: 12.56301191 | R46: 23.0942923 | S46: 24.5852257
A47: BRIG | B47: Brigantine Wilderness Area, NJ | C47: 2016 | D47: 25.6543839 | E47: 20.83238625 | F47: 21.61859673 | G47: 11.11993304 | H47: 11.59064829 | I47: 14.33402192 | J47: 19.18383875 | K47: 20.43607185 | L47: 24.08296838 | Q47: 12.40201099 | R47: 22.70011597 | S47: 24.18328526
A48: BRIG | B48: Brigantine Wilderness Area, NJ | C48: 2017 | D48: 25.37503502 | E48: 20.27733478 | F48: 21.29736427 | G48: 11.35985455 | H48: 11.47728398 | I48: 14.33402192 | J48: 18.08728522 | K48: 19.86314573 | L48: 23.80402975 | Q48: 12.24101008 | R48: 22.30593964 | S48: 23.78134482
A49: BRIG | B49: Brigantine Wilderness Area, NJ | C49: 2018 | D49: 25.09568615 | E49: 19.333482 | F49: 20.86250632 | G49: 10.69702263 | H49: 11.25640478 | I49: 14.33402192 | J49: 17.36729 | K49: 19.3129986 | L49: 23.52509112 | Q49: 12.08000916 | R49: 21.91176331 | S49: 23.37940438
A50: BRIG | B50: Brigantine Wilderness Area, NJ | C50: 2019 | D50: 24.81633728 | I50: 14.33402192 | L50: 23.24615249 | Q50: 11.91900825 | R50: 21.51758697 | S50: 22.97746394
A51: BRIG | B51: Brigantine Wilderness Area, NJ | C51: 2020 | D51: 24.5369884 | I51: 14.33402192 | L51: 22.96721386 | Q51: 11.75800733 | R51: 21.12341064 | S51: 22.57552351
A52: BRIG | B52: Brigantine Wilderness Area, NJ | C52: 2021 | D52: 24.25763953 | I52: 14.33402192 | L52: 22.68827523 | Q52: 11.59700641 | R52: 20.72923431 | S52: 22.17358307
A53: BRIG | B53: Brigantine Wilderness Area, NJ | C53: 2022 | D53: 23.97829066 | I53: 14.33402192 | L53: 22.4093366 | Q53: 11.4360055 | R53: 20.33505798 | S53: 21.77164263
A54: BRIG | B54: Brigantine Wilderness Area, NJ | C54: 2023 | D54: 23.69894179 | I54: 14.33402192 | L54: 22.13039797 | Q54: 11.27500458 | R54: 19.94088165 | S54: 21.36970219
A55: BRIG | B55: Brigantine Wilderness Area, NJ | C55: 2024 | D55: 23.41959291 | I55: 14.33402192 | L55: 21.85145934 | Q55: 11.11400366 | R55: 19.54670532 | S55: 20.96776175
A56: BRIG | B56: Brigantine Wilderness Area, NJ | C56: 2025 | D56: 23.14024404 | I56: 14.33402192 | L56: 21.57252071 | Q56: 10.95300275 | R56: 19.15252899 | S56: 20.56582131
A57: BRIG | B57: Brigantine Wilderness Area, NJ | C57: 2026 | D57: 22.86089517 | I57: 14.33402192 | L57: 21.29358208 | Q57: 10.79200183 | R57: 18.75835266 | S57: 20.16388088
A58: BRIG | B58: Brigantine Wilderness Area, NJ | C58: 2027 | D58: 22.58154629 | I58: 14.33402192 | L58: 21.01464345 | Q58: 10.63100092 | R58: 18.36417633 | S58: 19.76194044
A59: BRIG | B59: Brigantine Wilderness Area, NJ | C59: 2028 | D59: 22.30219742 | I59: 14.33402192 | L59: 20.73570482 | Q59: 10.47 | R59: 17.97 | S59: 19.36 | T59: 17.97 | U59: 19.36
A60: DOSO | B60: Dolly Sods Wilderness, WV | C60: 2000 | E60: 29.0344355 | G60: 12.96049632 | J60: 27.7167895 | M60: 0.3108694229 | N60: 0.3227274715 | O60: 10.39359203 | P60: 8.924368001
A61: DOSO | B61: Dolly Sods Wilderness, WV | C61: 2001 | E61: 28.24022435 | G61: 13.30276739 | J61: 27.5326313
A62: DOSO | B62: Dolly Sods Wilderness, WV | C62: 2002 | E62: 28.46718739 | G62: 11.91363727 | J62: 27.95815522
A63: DOSO | B63: Dolly Sods Wilderness, WV | C63: 2003 | E63: 29.72805739 | G63: 11.54182565 | J63: 29.32585783
A64: DOSO | B64: Dolly Sods Wilderness, WV | C64: 2004 | D64: 29.04575741 | E64: 29.7588824 | F64: 29.04575741 | G64: 11.67128792 | H64: 12.27800291 | I64: 12.27800291 | J64: 28.9066476 | K64: 28.28801629 | L64: 28.28801629 | Q64: 12.27800258 | R64: 28.28801648 | S64: 29.04575791
A65: DOSO | B65: Dolly Sods Wilderness, WV | C65: 2005 | D65: 28.73488798 | E65: 30.89215167 | F65: 29.41730064 | G65: 12.08607522 | H65: 12.10311869 | I65: 12.27800291 | J65: 30.45488167 | K65: 28.83563472 | L65: 27.96528882 | Q65: 12.06933581 | R65: 27.73809913 | S65: 28.49093466
A66: DOSO | B66: Dolly Sods Wilderness, WV | C66: 2006 | D66: 28.42401856 | E66: 29.80104458 | F66: 29.72946469 | G66: 10.57144348 | H66: 11.55685391 | I66: 12.27800291 | J66: 28.91221208 | K66: 29.11155088 | L66: 27.64256135 | Q66: 11.86066903 | R66: 27.18818177 | S66: 27.93611142
A67: DOSO | B67: Dolly Sods Wilderness, WV | C67: 2007 | D67: 28.11314914 | E67: 29.51565 | F67: 29.93915721 | G67: 10.2692387 | H67: 11.22797419 | I67: 12.27800291 | J67: 28.38958708 | K67: 29.19783725 | L67: 27.31983388 | Q67: 11.65200226 | R67: 26.63826442 | S67: 27.38128817
A68: DOSO | B68: Dolly Sods Wilderness, WV | C68: 2008 | D68: 27.80227971 | E68: 25.38667458 | F68: 29.07088065 | G68: 9.43561125 | H68: 10.80673131 | I68: 12.27800291 | J68: 24.47391625 | K68: 28.22744894 | L68: 26.9971064 | Q68: 11.44333548 | R68: 26.08834707 | S68: 26.82646492
A69: DOSO | B69: Dolly Sods Wilderness, WV | C69: 2009 | D69: 27.49141029 | E69: 22.16685417 | F69: 27.552475 | G69: 8.702354167 | H69: 10.21294456 | I69: 12.27800291 | J69: 21.8890125 | K69: 26.82392192 | L69: 26.67437893 | Q69: 11.23466871 | R69: 25.53842971 | S69: 26.27164168
A70: DOSO | B70: Dolly Sods Wilderness, WV | C70: 2010 | D70: 27.18054087 | E70: 24.0164625 | F70: 26.17733717 | G70: 9.743389565 | H70: 9.744407431 | I70: 12.27800291 | J70: 22.67980958 | K70: 25.2689075 | L70: 26.35165146 | Q70: 11.02600194 | R70: 24.98851236 | S70: 25.71681843
A71: DOSO | B71: Dolly Sods Wilderness, WV | C71: 2011 | D71: 26.86967145 | E71: 24.501015 | F71: 25.11733125 | G71: 8.750023913 | H71: 9.380123518 | I71: 12.27800291 | J71: 23.65685583 | K71: 24.21783625 | L71: 26.02892399 | Q71: 10.81733516 | R71: 24.43859501 | S71: 25.16199519
A72: DOSO | B72: Dolly Sods Wilderness, WV | C72: 2012 | D72: 26.55880202 | E72: 21.37631958 | F72: 23.48946517 | G72: 9.593641304 | H72: 9.24500404 | I72: 12.27800291 | J72: 20.87877583 | K72: 22.715674 | L72: 25.70619652 | Q72: 10.60866839 | R72: 23.88867765 | S72: 24.60717194
A73: DOSO | B73: Dolly Sods Wilderness, WV | C73: 2013 | D73: 26.2479326 | E73: 19.94202958 | F73: 22.40053617 | G73: 8.342917826 | H73: 9.026465355 | I73: 12.27800291 | J73: 18.82701208 | K73: 21.58629317 | L73: 25.38346905 | Q73: 10.40000161 | R73: 23.3387603 | S73: 24.05234869
A74: DOSO | B74: Dolly Sods Wilderness, WV | C74: 2014 | D74: 25.93706318 | E74: 20.2505075 | F74: 22.01726683 | G74: 8.516818696 | H74: 8.989358261 | I74: 12.27800291 | J74: 19.41274375 | K74: 21.09103942 | L74: 25.06074157 | Q74: 10.19133484 | R74: 22.78884295 | S74: 23.49752545
A75: DOSO | B75: Dolly Sods Wilderness, WV | C75: 2015 | D75: 25.62619375 | E75: 20.14613417 | F75: 21.24320117 | G75: 5.883614348 | H75: 8.217403217 | I75: 12.27800291 | J75: 18.54806 | K75: 20.2646895 | L75: 24.7380141 | Q75: 9.982668065 | R75: 22.23892559 | S75: 22.9427022
A76: DOSO | B76: Dolly Sods Wilderness, WV | C76: 2016 | D76: 25.31532433 | E76: 18.06810875 | F76: 19.95661992 | G76: 6.995272917 | H76: 7.866453018 | I76: 12.27800291 | J76: 16.75680042 | K76: 18.88467842 | L76: 24.41528663 | Q76: 9.774001291 | R76: 21.68900824 | S76: 22.38787895
A77: DOSO | B77: Dolly Sods Wilderness, WV | C77: 2017 | D77: 25.00445491 | E77: 17.40688478 | F77: 19.16273296 | G77: 6.706537727 | H77: 7.289032303 | I77: 12.27800291 | J77: 16.18622696 | K77: 17.94616864 | L77: 24.09255916 | Q77: 9.565334517 | R77: 21.13909089 | S77: 21.83305571
A78: DOSO | B78: Dolly Sods Wilderness, WV | C78: 2018 | D78: 24.69358548 | E78: 17.93154375 | F78: 18.76063579 | G78: 5.5163 | H78: 6.723708737 | I78: 12.27800291 | J78: 17.10233958 | K78: 17.60123414 | L78: 23.76983169 | Q78: 9.356667742 | R78: 20.58917353 | S78: 21.27823246
A79: DOSO | B79: Dolly Sods Wilderness, WV | C79: 2019 | D79: 24.38271606 | I79: 12.27800291 | L79: 23.44710422 | Q79: 9.148000968 | R79: 20.03925618 | S79: 20.72340922
A80: DOSO | B80: Dolly Sods Wilderness, WV | C80: 2020 | D80: 24.07184664 | I80: 12.27800291 | L80: 23.12437675 | Q80: 8.939334194 | R80: 19.48933883 | S80: 20.16858597
A81: DOSO | B81: Dolly Sods Wilderness, WV | C81: 2021 | D81: 23.76097722 | I81: 12.27800291 | L81: 22.80164927 | Q81: 8.73066742 | R81: 18.93942147 | S81: 19.61376272
A82: DOSO | B82: Dolly Sods Wilderness, WV | C82: 2022 | D82: 23.45010779 | I82: 12.27800291 | L82: 22.4789218 | Q82: 8.522000645 | R82: 18.38950412 | S82: 19.05893948
A83: DOSO | B83: Dolly Sods Wilderness, WV | C83: 2023 | D83: 23.13923837 | I83: 12.27800291 | L83: 22.15619433 | Q83: 8.313333871 | R83: 17.83958677 | S83: 18.50411623
A84: DOSO | B84: Dolly Sods Wilderness, WV | C84: 2024 | D84: 22.82836895 | I84: 12.27800291 | L84: 21.83346686 | Q84: 8.104667097 | R84: 17.28966941 | S84: 17.94929298
A85: DOSO | B85: Dolly Sods Wilderness, WV | C85: 2025 | D85: 22.51749952 | I85: 12.27800291 | L85: 21.51073939 | Q85: 7.896000323 | R85: 16.73975206 | S85: 17.39446974
A86: DOSO | B86: Dolly Sods Wilderness, WV | C86: 2026 | D86: 22.2066301 | I86: 12.27800291 | L86: 21.18801192 | Q86: 7.687333548 | R86: 16.18983471 | S86: 16.83964649
A87: DOSO | B87: Dolly Sods Wilderness, WV | C87: 2027 | D87: 21.89576068 | I87: 12.27800291 | L87: 20.86528445 | Q87: 7.478666774 | R87: 15.63991735 | S87: 16.28482325
A88: DOSO | B88: Dolly Sods Wilderness, WV | C88: 2028 | D88: 21.58489126 | I88: 12.27800291 | L88: 20.54255697 | Q88: 7.27 | R88: 15.09 | S88: 15.73 | T88: 15.09 | U88: 15.73
A89: GRGU | B89: Great Gulf Wilderness Area, NH | C89: 2000 | M89: 0.1804439226 | N89: 0.202450733 | O89: 11.99365617 | P89: 9.77880884
A90: GRGU | B90: Great Gulf Wilderness Area, NH | C90: 2001 | E90: 23.29293826 | G90: 8.261430455 | J90: 22.46526522
A91: GRGU | B91: Great Gulf Wilderness Area, NH | C91: 2002 | E91: 24.83852458 | G91: 7.77047 | J91: 23.42895375
A92: GRGU | B92: Great Gulf Wilderness Area, NH | C92: 2003 | E92: 21.587125 | G92: 6.944663478 | J92: 20.65197667
A93: GRGU | B93: Great Gulf Wilderness Area, NH | C93: 2004 | D93: 22.82029153 | E93: 21.56257826 | F93: 22.82029153 | G93: 7.675821739 | H93: 7.663096418 | I93: 7.663096418 | J93: 21.15721565 | K93: 21.92585282 | L93: 21.92585282 | Q93: 7.663096272 | R93: 21.92585315 | S93: 22.92585315
A94: GRGU | B94: Great Gulf Wilderness Area, NH | C94: 2005 | D94: 22.6398476 | E94: 21.52734609 | F94: 22.56170244 | G94: 6.903959091 | H94: 7.511268953 | I94: 7.663096418 | J94: 20.50660435 | K94: 21.64200313 | L94: 21.72340209 | Q94: 7.554633928 | R94: 21.51227594 | S94: 22.5176926
A95: GRGU | B95: Great Gulf Wilderness Area, NH | C95: 2006 | D95: 22.45940368 | E95: 21.124665 | F95: 22.12804779 | G95: 6.427488333 | H95: 7.144480528 | I95: 7.663096418 | J95: 19.73550083 | K95: 21.09605025 | L95: 21.52095136 | Q95: 7.446171583 | R95: 21.09869872 | S95: 22.10953205
A96: GRGU | B96: Great Gulf Wilderness Area, NH | C96: 2007 | D96: 22.27895976 | E96: 21.34844609 | F96: 21.43003209 | G96: 6.862025 | H96: 6.962791528 | I96: 7.663096418 | J96: 21.06284087 | K96: 20.62282767 | L96: 21.31850062 | Q96: 7.337709238 | R96: 20.68512151 | S96: 21.70137151
A97: GRGU | B97: Great Gulf Wilderness Area, NH | C97: 2008 | D97: 22.09851584 | E97: 16.77739591 | F97: 20.46808627 | G97: 6.197989524 | H97: 6.813456737 | I97: 7.663096418 | J97: 16.09566318 | K97: 19.71156498 | L97: 21.11604989 | Q97: 7.229246894 | R97: 20.27154429 | S97: 21.29321096
A98: GRGU | B98: Great Gulf Wilderness Area, NH | C98: 2009 | D98: 21.91807191 | F98: 20.19446327 | H98: 6.597865487 | I98: 7.663096418 | K98: 19.35015231 | L98: 20.91359916 | Q98: 7.120784549 | R98: 19.85796708 | S98: 20.88505041
A99: GRGU | B99: Great Gulf Wilderness Area, NH | C99: 2010 | D99: 21.73762799 | F99: 19.750169 | H99: 6.495834286 | I99: 7.663096418 | K99: 18.96466829 | L99: 20.71114842 | Q99: 7.012322204 | R99: 19.44438986 | S99: 20.47688986
A100: GRGU | B100: Great Gulf Wilderness Area, NH | C100: 2011 | D100: 21.55718407 | E100: 19.04078286 | F100: 19.05554162 | G100: 6.3741725 | H100: 6.478062341 | I100: 7.663096418 | J100: 17.5512181 | K100: 18.23657405 | L100: 20.50869769 | Q100: 6.90385986 | R100: 19.03081265 | S100: 20.06872932
A101: GRGU | B101: Great Gulf Wilderness Area, NH | C101: 2012 | D101: 21.37674015 | E101: 15.96647478 | F101: 17.26155118 | G101: 5.814406364 | H101: 6.128856129 | I101: 7.663096418 | J101: 14.85867 | K101: 16.16851709 | L101: 20.30624696 | Q101: 6.795397515 | R101: 18.61723543 | S101: 19.66056877
A102: GRGU | B102: Great Gulf Wilderness Area, NH | C102: 2013 | D102: 21.19629622 | E102: 14.98223043 | F102: 16.66316269 | G102: 5.411648182 | H102: 5.866742348 | I102: 7.663096418 | J102: 13.8735287 | K102: 15.4278056 | L102: 20.10379622 | Q102: 6.68693517 | R102: 18.20365822 | S102: 19.25240822
A103: GRGU | B103: Great Gulf Wilderness Area, NH | C103: 2014 | D103: 21.0158523 | E103: 16.26951304 | F103: 16.56475028 | G103: 5.75410913 | H103: 5.838584044 | I103: 7.663096418 | J103: 15.18558478 | K103: 15.36725039 | L103: 19.90134549 | Q103: 6.578472825 | R103: 17.790081 | S103: 18.84424767
A104: GRGU | B104: Great Gulf Wilderness Area, NH | C104: 2015 | D104: 20.83540838 | E104: 15.64494409 | F104: 16.38078904 | G104: 4.916600952 | H104: 5.654187426 | I104: 7.663096418 | J104: 14.43662 | K104: 15.18112431 | L104: 19.69889476 | Q104: 6.470010481 | R104: 17.37650379 | S104: 18.43608712
A105: GRGU | B105: Great Gulf Wilderness Area, NH | C105: 2016 | D105: 20.65496446 | E105: 13.15865875 | F105: 15.20436422 | G105: 4.689127826 | H105: 5.317178491 | I105: 7.663096418 | J105: 11.23315792 | K105: 13.91751228 | L105: 19.49644403 | Q105: 6.361548136 | R105: 16.96292658 | S105: 18.02792658
A106: GRGU | B106: Great Gulf Wilderness Area, NH | C106: 2017 | D106: 20.47452053 | E106: 13.88306348 | F106: 14.78768196 | G106: 5.221343182 | H106: 5.198565855 | I106: 7.663096418 | J106: 11.81334739 | K106: 13.30844776 | L106: 19.29399329 | Q106: 6.253085791 | R106: 16.54934936 | S106: 17.61976603
A107: GRGU | B107: Great Gulf Wilderness Area, NH | C107: 2018 | D107: 20.29407661 | E107: 15.02496696 | F107: 14.79622926 | G107: 4.365012174 | H107: 4.989238653 | I107: 7.663096418 | J107: 12.70120217 | K107: 13.07398245 | L107: 19.09154256 | Q107: 6.144623447 | R107: 16.13577215 | S107: 17.21160548
A108: GRGU | B108: Great Gulf Wilderness Area, NH | C108: 2019 | D108: 20.11363269 | I108: 7.663096418 | L108: 18.88909183 | Q108: 6.036161102 | R108: 15.72219493 | S108: 16.80344493
A109: GRGU | B109: Great Gulf Wilderness Area, NH | C109: 2020 | D109: 19.93318876 | I109: 7.663096418 | L109: 18.68664109 | Q109: 5.927698757 | R109: 15.30861772 | S109: 16.39528438
A110: GRGU | B110: Great Gulf Wilderness Area, NH | C110: 2021 | D110: 19.75274484 | I110: 7.663096418 | L110: 18.48419036 | Q110: 5.819236413 | R110: 14.8950405 | S110: 15.98712384
A111: GRGU | B111: Great Gulf Wilderness Area, NH | C111: 2022 | D111: 19.57230092 | I111: 7.663096418 | L111: 18.28173963 | Q111: 5.710774068 | R111: 14.48146329 | S111: 15.57896329
A112: GRGU | B112: Great Gulf Wilderness Area, NH | C112: 2023 | D112: 19.391857 | I112: 7.663096418 | L112: 18.07928889 | Q112: 5.602311723 | R112: 14.06788607 | S112: 15.17080274
A113: GRGU | B113: Great Gulf Wilderness Area, NH | C113: 2024 | D113: 19.21141307 | I113: 7.663096418 | L113: 17.87683816 | Q113: 5.493849379 | R113: 13.65430886 | S113: 14.76264219
A114: GRGU | B114: Great Gulf Wilderness Area, NH | C114: 2025 | D114: 19.03096915 | I114: 7.663096418 | L114: 17.67438743 | Q114: 5.385387034 | R114: 13.24073164 | S114: 14.35448164
A115: GRGU | B115: Great Gulf Wilderness Area, NH | C115: 2026 | D115: 18.85052523 | I115: 7.663096418 | L115: 17.47193669 | Q115: 5.276924689 | R115: 12.82715443 | S115: 13.9463211
A116: GRGU | B116: Great Gulf Wilderness Area, NH | C116: 2027 | D116: 18.67008131 | I116: 7.663096418 | L116: 17.26948596 | Q116: 5.168462345 | R116: 12.41357721 | S116: 13.53816055
A117: GRGU | B117: Great Gulf Wilderness Area, NH | C117: 2028 | D117: 18.48963738 | I117: 7.663096418 | L117: 17.06703523 | Q117: 5.06 | R117: 12 | S117: 13.13 | T117: 12 | U117: 13.13
A118: LYBR_RHTS | B118: Lye Brook Wilderness, VT | C118: 2000 | E118: 23.45318667 | G118: 6.49258 | J118: 23.10141381 | M118: 0.2118647878 | N118: 0.2222122877 | O118: 11.73485629 | P118: 10.23321838
A119: LYBR_RHTS | B119: Lye Brook Wilderness, VT | C119: 2001 | E119: 26.3251395 | G119: 6.4714185 | J119: 25.4804045
A120: LYBR_RHTS | B120: Lye Brook Wilderness, VT | C120: 2002 | E120: 25.52047043 | G120: 6.427855909 | J120: 23.46484391
A121: LYBR_RHTS | B121: Lye Brook Wilderness, VT | C121: 2003 | E121: 24.02294208 | G121: 5.831362174 | J121: 23.36971417
A122: LYBR_RHTS | B122: Lye Brook Wilderness, VT | C122: 2004 | D122: 24.44674356 | E122: 22.91197909 | F122: 24.44674356 | G122: 6.609866818 | H122: 6.36661668 | I122: 6.36661668 | J122: 22.41340182 | K122: 23.56595564 | L122: 23.56595564 | Q122: 6.366616622 | R122: 23.56595584 | S122: 24.44674372
A123: LYBR_RHTS | B123: Lye Brook Wilderness, VT | C123: 2005 | D123: 24.23487877 | E123: 26.03746571 | F123: 24.96359936 | G123: 5.458291 | H123: 6.15975888 | I123: 6.36661668 | J123: 25.91868714 | K123: 24.12941031 | L123: 23.34374335 | Q123: 6.262174263 | R123: 23.15404101 | S123: 24.01854607
A124: LYBR_RHTS | B124: Lye Brook Wilderness, VT | C124: 2006 | D124: 24.02301398 | E124: 22.31238217 | F124: 24.1610479 | G124: 5.243543182 | H124: 5.914183817 | I124: 6.36661668 | J124: 21.1869813 | K124: 23.27072567 | L124: 23.12153107 | Q124: 6.157731904 | R124: 22.74212618 | S124: 23.59034841
A125: LYBR_RHTS | B125: Lye Brook Wilderness, VT | C125: 2007 | D125: 23.81114919 | E125: 25.25052 | F125: 24.10705781 | G125: 5.6758735 | H125: 5.763787335 | I125: 6.36661668 | J125: 24.96341333 | K125: 23.57043955 | L125: 22.89931878 | Q125: 6.053289544 | R125: 22.33021136 | S125: 23.16215076
A126: LYBR_RHTS | B126: Lye Brook Wilderness, VT | C126: 2008 | D126: 23.5992844 | F126: 24.12808674 | H126: 5.746893625 | I126: 6.36661668 | K126: 23.6206209 | L126: 22.67710649 | Q126: 5.948847185 | R126: 21.91829653 | S126: 22.7339531
A127: LYBR_RHTS | B127: Lye Brook Wilderness, VT | C127: 2009 | D127: 23.38741962 | E127: 18.43730476 | F127: 23.00941816 | G127: 4.109623 | H127: 5.12183267 | I127: 6.36661668 | J127: 17.8544919 | K127: 22.48089342 | L127: 22.4548942 | Q127: 5.844404826 | R127: 21.50638171 | S127: 22.30575545
A128: LYBR_RHTS | B128: Lye Brook Wilderness, VT | C128: 2010 | D128: 23.17555483 | E128: 19.95879391 | F128: 21.48975021 | G128: 4.083329091 | H128: 4.778092193 | I128: 6.36661668 | J128: 19.08975348 | K128: 20.77366001 | L128: 22.23268192 | Q128: 5.739962467 | R128: 21.09446688 | S128: 21.87755779
A129: LYBR_RHTS | B129: Lye Brook Wilderness, VT | C129: 2011 | D129: 22.96369004 | E129: 19.37553286 | F129: 20.75553788 | G129: 5.399928 | H129: 4.817188398 | I129: 6.36661668 | J129: 18.26713476 | K129: 20.04369837 | L129: 22.01046963 | Q129: 5.635520107 | R129: 20.68255205 | S129: 21.44936014
A130: LYBR_RHTS | B130: Lye Brook Wilderness, VT | C130: 2012 | D130: 22.75182525 | E130: 18.57249091 | F130: 19.08603061 | G130: 5.49277619 | H130: 4.77141407 | I130: 6.36661668 | J130: 17.78050318 | K130: 18.24797083 | L130: 21.78825734 | Q130: 5.531077748 | R130: 20.27063723 | S130: 21.02116248
A131: LYBR_RHTS | B131: Lye Brook Wilderness, VT | C131: 2013 | D131: 22.53996047 | E131: 17.45672042 | F131: 18.76016857 | G131: 5.352656957 | H131: 4.887662648 | I131: 6.36661668 | J131: 17.32128167 | K131: 18.062633 | L131: 21.56604505 | Q131: 5.426635389 | R131: 19.8587224 | S131: 20.59296483
A132: LYBR_RHTS | B132: Lye Brook Wilderness, VT | C132: 2014 | D132: 22.32809568 | E132: 17.14197167 | F132: 18.50110195 | G132: 5.004226667 | H132: 5.066583381 | I132: 6.36661668 | J132: 16.61486833 | K132: 17.81470828 | L132: 21.34383276 | Q132: 5.32219303 | R132: 19.44680757 | S132: 20.16476717
A133: LYBR_RHTS | B133: Lye Brook Wilderness, VT | C133: 2015 | D133: 22.11623089 | E133: 17.24862182 | F133: 17.95906753 | G133: 5.100281429 | H133: 5.269973848 | I133: 6.36661668 | J133: 15.21982227 | K133: 17.04072204 | L133: 21.12162048 | Q133: 5.21775067 | R133: 19.03489275 | S133: 19.73656952
A134: LYBR_RHTS | B134: Lye Brook Wilderness, VT | C134: 2016 | D134: 21.9043661 | E134: 15.12532045 | F134: 17.10902505 | G134: 4.877691429 | H134: 5.165526534 | I134: 6.36661668 | J134: 13.41589182 | K134: 16.07047345 | L134: 20.89940819 | Q134: 5.113308311 | R134: 18.62297792 | S134: 19.30837186
A135: LYBR_RHTS | B135: Lye Brook Wilderness, VT | C135: 2017 | D135: 21.69250131 | E135: 15.63902417 | F135: 16.5223317 | G135: 5.43004 | H135: 5.152979296 | I135: 6.36661668 | J135: 13.94762208 | K135: 15.30389723 | L135: 20.6771959 | Q135: 5.008865952 | R135: 18.21106309 | S135: 18.88017421
A136: LYBR_RHTS | B136: Lye Brook Wilderness, VT | C136: 2018 | D136: 21.48063653 | E136: 15.62308208 | F136: 16.15560404 | G136: 4.622517391 | H136: 5.006951383 | I136: 6.36661668 | J136: 14.31025417 | K136: 14.70169173 | L136: 20.45498361 | Q136: 4.904423593 | R136: 17.79914827 | S136: 18.45197655
A137: LYBR_RHTS | B137: Lye Brook Wilderness, VT | C137: 2019 | D137: 21.26877174 | I137: 6.36661668 | L137: 20.23277133 | Q137: 4.799981233 | R137: 17.38723344 | S137: 18.0237789
A138: LYBR_RHTS | B138: Lye Brook Wilderness, VT | C138: 2020 | D138: 21.05690695 | I138: 6.36661668 | L138: 20.01055904 | Q138: 4.695538874 | R138: 16.97531861 | S138: 17.59558124
A139: LYBR_RHTS | B139: Lye Brook Wilderness, VT | C139: 2021 | D139: 20.84504216 | I139: 6.36661668 | L139: 19.78834675 | Q139: 4.591096515 | R139: 16.56340379 | S139: 17.16738359
A140: LYBR_RHTS | B140: Lye Brook Wilderness, VT | C140: 2022 | D140: 20.63317738 | I140: 6.36661668 | L140: 19.56613446 | Q140: 4.486654156 | R140: 16.15148896 | S140: 16.73918593
A141: LYBR_RHTS | B141: Lye Brook Wilderness, VT | C141: 2023 | D141: 20.42131259 | I141: 6.36661668 | L141: 19.34392217 | Q141: 4.382211796 | R141: 15.73957413 | S141: 16.31098828
A142: LYBR_RHTS | B142: Lye Brook Wilderness, VT | C142: 2024 | D142: 20.2094478 | I142: 6.36661668 | L142: 19.12170989 | Q142: 4.277769437 | R142: 15.32765931 | S142: 15.88279062
A143: LYBR_RHTS | B143: Lye Brook Wilderness, VT | C143: 2025 | D143: 19.99758301 | I143: 6.36661668 | L143: 18.8994976 | Q143: 4.173327078 | R143: 14.91574448 | S143: 15.45459297
A144: LYBR_RHTS | B144: Lye Brook Wilderness, VT | C144: 2026 | D144: 19.78571822 | I144: 6.36661668 | L144: 18.67728531 | Q144: 4.068884719 | R144: 14.50382965 | S144: 15.02639531
A145: LYBR_RHTS | B145: Lye Brook Wilderness, VT | C145: 2027 | D145: 19.57385344 | I145: 6.36661668 | L145: 18.45507302 | Q145: 3.964442359 | R145: 14.09191483 | S145: 14.59819766
A146: LYBR_RHTS | B146: Lye Brook Wilderness, VT | C146: 2028 | D146: 19.36198865 | I146: 6.36661668 | L146: 18.23286074 | Q146: 3.86 | R146: 13.68 | S146: 14.17 | T146: 13.68 | U146: 14.17
A147: LYBR | B147: Lye Brook 1 | C147: 2000 | E147: 23.45318667 | G147: 6.49258 | J147: 23.10141381 | M147: 0.2118647878 | N147: 0.2168650049 | O147: 11.73485629 | P147: 10.55405535
A148: LYBR | B148: Lye Brook 1 | C148: 2001 | E148: 26.3251395 | G148: 6.4714185 | J148: 25.4804045
A149: LYBR | B149: Lye Brook 1 | C149: 2002 | E149: 25.52047043 | G149: 6.427855909 | J149: 23.46484391
A150: LYBR | B150: Lye Brook 1 | C150: 2003 | E150: 24.02294208 | G150: 5.831362174 | J150: 23.36971417
A151: LYBR | B151: Lye Brook 1 | C151: 2004 | D151: 24.44674356 | E151: 22.91197909 | F151: 24.44674356 | G151: 6.609866818 | H151: 6.36661668 | I151: 6.36661668 | J151: 22.41340182 | K151: 23.56595564 | L151: 23.56595564
A152: LYBR | B152: Lye Brook 1 | C152: 2005 | D152: 24.23487877 | E152: 26.03746571 | F152: 24.96359936 | G152: 5.458291 | H152: 6.15975888 | I152: 6.36661668 | J152: 25.91868714 | K152: 24.12941031 | L152: 23.34909064
A153: LYBR | B153: Lye Brook 1 | C153: 2006 | D153: 24.02301398 | E153: 22.31238217 | F153: 24.1610479 | G153: 5.243543182 | H153: 5.914183817 | I153: 6.36661668 | J153: 21.1869813 | K153: 23.27072567 | L153: 23.13222563
A154: LYBR | B154: Lye Brook 1 | C154: 2007 | D154: 23.81114919 | E154: 25.25052 | F154: 24.10705781 | G154: 5.6758735 | H154: 5.763787335 | I154: 6.36661668 | J154: 24.96341333 | K154: 23.57043955 | L154: 22.91536063
A155: LYBR | B155: Lye Brook 1 | C155: 2008 | D155: 23.5992844 | F155: 24.12808674 | H155: 5.746893625 | I155: 6.36661668 | K155: 23.6206209 | L155: 22.69849562 | S155: 24.44674372
A156: LYBR | B156: Lye Brook 1 | C156: 2009 | D156: 23.38741962 | E156: 18.43730476 | F156: 23.00941816 | G156: 4.109623 | H156: 5.12183267 | I156: 6.36661668 | J156: 17.8544919 | K156: 22.48089342 | L156: 22.48163062 | S156: 24.19340489
A157: LYBR | B157: Lye Brook 1 | C157: 2010 | D157: 23.17555483 | E157: 19.95879391 | F157: 21.48975021 | G157: 4.083329091 | H157: 4.778092193 | I157: 6.36661668 | J157: 19.08975348 | K157: 20.77366001 | L157: 22.26476561 | S157: 23.94006605
A158: LYBR | B158: Lye Brook 1 | C158: 2011 | D158: 22.96369004 | E158: 19.37553286 | F158: 20.75553788 | G158: 5.399928 | H158: 4.817188398 | I158: 6.36661668 | J158: 18.26713476 | K158: 20.04369837 | L158: 22.04790061 | S158: 23.68672721
A159: LYBR | B159: Lye Brook 1 | C159: 2012 | D159: 22.75182525 | I159: 6.36661668 | L159: 21.8310356 | S159: 23.43338837
A160: LYBR | B160: Lye Brook 1 | C160: 2013 | D160: 22.53996047 | I160: 6.36661668 | L160: 21.6141706 | S160: 23.18004954
A161: LYBR | B161: Lye Brook 1 | C161: 2014 | D161: 22.32809568 | I161: 6.36661668 | L161: 21.39730559 | S161: 22.9267107
A162: LYBR | B162: Lye Brook 1 | C162: 2015 | D162: 22.11623089 | I162: 6.36661668 | L162: 21.18044059 | S162: 22.67337186
A163: LYBR | B163: Lye Brook 1 | C163: 2016 | D163: 21.9043661 | I163: 6.36661668 | L163: 20.96357558 | S163: 22.42003302
A164: LYBR | B164: Lye Brook 1 | C164: 2017 | D164: 21.69250131 | I164: 6.36661668 | L164: 20.74671058 | S164: 22.16669419
A165: LYBR | B165: Lye Brook 1 | C165: 2018 | D165: 21.48063653 | I165: 6.36661668 | L165: 20.52984557 | S165: 21.91335535
A166: LYBR | B166: Lye Brook 1 | C166: 2019 | D166: 21.26877174 | I166: 6.36661668 | L166: 20.31298057 | S166: 21.66001651
A167: LYBR | B167: Lye Brook 1 | C167: 2020 | D167: 21.05690695 | I167: 6.36661668 | L167: 20.09611556 | S167: 21.40667767
A168: LYBR | B168: Lye Brook 1 | C168: 2021 | D168: 20.84504216 | I168: 6.36661668 | L168: 19.87925056 | S168: 21.15333884
A169: LYBR | B169: Lye Brook 1 | C169: 2022 | D169: 20.63317738 | I169: 6.36661668 | L169: 19.66238555 | S169: 20.9
A170: LYBR | B170: Lye Brook 1 | C170: 2023 | D170: 20.42131259 | I170: 6.36661668 | L170: 19.44552055
A171: LYBR | B171: Lye Brook 1 | C171: 2024 | D171: 20.2094478 | I171: 6.36661668 | L171: 19.22865554
A172: LYBR | B172: Lye Brook 1 | C172: 2025 | D172: 19.99758301 | I172: 6.36661668 | L172: 19.01179054
A173: LYBR | B173: Lye Brook 1 | C173: 2026 | D173: 19.78571822 | I173: 6.36661668 | L173: 18.79492553
A174: LYBR | B174: Lye Brook 1 | C174: 2027 | D174: 19.57385344 | I174: 6.36661668 | L174: 18.57806053
A175: LYBR | B175: Lye Brook 1 | C175: 2028 | D175: 19.36198865 | I175: 6.36661668 | L175: 18.36119552
A176: LYEB | B176: Lye Brook 2 | C176: 2000
A177: LYEB | B177: Lye Brook 2 | C177: 2001
A178: LYEB | B178: Lye Brook 2 | C178: 2002
A179: LYEB | B179: Lye Brook 2 | C179: 2003
A180: LYEB | B180: Lye Brook 2 | C180: 2004
A181: LYEB | B181: Lye Brook 2 | C181: 2005
A182: LYEB | B182: Lye Brook 2 | C182: 2006
A183: LYEB | B183: Lye Brook 2 | C183: 2007
A184: LYEB | B184: Lye Brook 2 | C184: 2008
A185: LYEB | B185: Lye Brook 2 | C185: 2009
A186: LYEB | B186: Lye Brook 2 | C186: 2010
A187: LYEB | B187: Lye Brook 2 | C187: 2011
A188: LYEB | B188: Lye Brook 2 | C188: 2012 | E188: 18.57249091 | G188: 5.49277619 | J188: 17.78050318
A189: LYEB | B189: Lye Brook 2 | C189: 2013 | E189: 17.45672042 | G189: 5.352656957 | J189: 17.32128167
A190: LYEB | B190: Lye Brook 2 | C190: 2014 | E190: 17.14197167 | F190: 17.72372766 | G190: 5.004226667 | H190: 5.283219938 | J190: 16.55794625 | K190: 17.21991037
A191: LYEB | B191: Lye Brook 2 | C191: 2015 | E191: 17.24862182 | F191: 17.6049512 | G191: 5.100281429 | H191: 5.237485311 | J191: 15.21982227 | K191: 16.71988834
A192: LYEB | B192: Lye Brook 2 | C192: 2016 | E192: 15.12532045 | F192: 17.10902505 | G192: 4.877691429 | H192: 5.165526534 | J192: 13.39642818 | K192: 16.05519631
A193: LYEB | B193: Lye Brook 2 | C193: 2017 | E193: 15.63902417 | F193: 16.5223317 | G193: 5.43004 | H193: 5.152979296 | J193: 13.94762208 | K193: 15.28862009
A194: LYEB | B194: Lye Brook 2 | C194: 2018 | E194: 15.62308208 | F194: 16.15560404 | G194: 4.622517391 | H194: 5.006951383 | J194: 14.31025417 | K194: 14.68641459
A195: LYEB | B195: Lye Brook 2 | C195: 2019
A196: LYEB | B196: Lye Brook 2 | C196: 2020
A197: LYEB | B197: Lye Brook 2 | C197: 2021
A198: LYEB | B198: Lye Brook 2 | C198: 2022
A199: LYEB | B199: Lye Brook 2 | C199: 2023
A200: LYEB | B200: Lye Brook 2 | C200: 2024
... 671 more rows

Sheet Index
A22: Pivot Table | C22: Pivot Chart | H22: SUMMARY for pivot

Sheet PT
A1: Index
A2: Site | B2: ACAD | C2: =VLOOKUP(B2,'SUMMARY for pivot'!$A$2:$B$843,2,FALSE) -> Acadia National Park, ME
A4: Row Labels | B4: Uniform Rate of Progress- 20% Worst Days | C4: Haze Index- 20% Worst Days | D4: Haze Index (5-yr avg)- 20% Worst Days | E4: Straight line path to RPG - 20% Worst Days | F4: Haze Index- 20% Best Days | G4: Haze Index (5-yr avg)- 20% Best Days | H4: No Degradation- 20% Best Days | I4: Straight line path to RPG - 20% Best Days | J4: Uniform Rate of Progress- 20% Most Impaired Days | K4: Haze Index- 20% Most Impaired Days | L4: Haze Index (5-yr avg)- 20% Most Impaired Days | M4: Straight line path to RPG - 20% Most Impaired Days
A5: 2000 | C5: 21.63668429 | F5: 8.9009695 | K5: 20.7527681
A6: 2001 | C6: 23.2786752 | F6: 8.874270833 | K6: 22.3742984
A7: 2002 | C7: 23.913308 | F7: 8.770072917 | K7: 22.9097568
A8: 2003 | C8: 23.64818625 | F8: 8.769720833 | K8: 22.69669375
A9: 2004 | B9: 22.89219771 | C9: 21.9841348 | D9: 22.89219771 | E9: 22.89219797 | F9: 8.562797083 | G9: 8.775566233 | H9: 8.775566233 | I9: 8.775565896 | J9: 22.01423293 | K9: 21.3376476 | L9: 22.01423293 | M9: 22.01423312
A10: 2005 | B10: 22.71789003 | C10: 23.0898748 | D10: 23.18283581 | E10: 22.55835639 | F10: 7.656128333 | G10: 8.526598 | H10: 8.775566233 | I10: 8.673667317 | J10: 21.8204514 | K10: 21.8503724 | L10: 22.23375379 | M10: 21.65322341
A11: 2006 | B11: 22.54358236 | C11: 23.37468167 | D11: 23.2020371 | E11: 22.22451481 | F11: 8.2539025 | G11: 8.402524333 | H11: 8.775566233 | I11: 8.571768738 | J11: 21.62666986 | K11: 22.68771167 | L11: 22.29643644 | M11: 21.2922137
A12: 2007 | B12: 22.36927468 | C12: 21.74489583 | D12: 22.76835467 | E12: 21.89067322 | F12: 8.275860833 | G12: 8.303681917 | H12: 8.775566233 | I12: 8.469870159 | J12: 21.43288833 | K12: 20.835775 | L12: 21.88164008 | M12: 20.93120398
A13: 2008 | B13: 22.19496701 | C13: 20.2050312 | D13: 22.07972366 | E13: 21.55683164 | F13: 7.763495833 | G13: 8.102436917 | H13: 8.775566233 | I13: 8.36797158 | J13: 21.2391068 | K13: 19.349384 | L13: 21.21217813 | M13: 20.57019427
A14: 2009 | B14: 22.02065933 | C14: 18.9339968 | D14: 21.46969606 | E14: 21.22299006 | F14: 6.920979167 | G14: 7.774073333 | H14: 8.775566233 | I14: 8.266073001 | J14: 21.04532527 | K14: 18.1685528 | L14: 20.57835917 | M14: 20.20918456
A15: 2010 | B15: 21.84635165 | C15: 18.26606625 | D15: 20.50493435 | E15: 20.88914848 | F15: 6.706666667 | G15: 7.584181 | H15: 8.775566233 | I15: 8.164174422 | J15: 20.85154373 | K15: 17.51925167 | L15: 19.71213503 | M15: 19.84817484
A16: 2011 | B16: 21.67204398 | C16: 19.0111532 | D16: 19.63222866 | E16: 20.5553069 | F16: 7.50934125 | G16: 7.43526875 | H16: 8.775566233 | I16: 8.062275843 | J16: 20.6577622 | K16: 17.3876628 | L16: 18.65212525 | M16: 19.48716513
A17: 2012 | B17: 21.4977363 | C17: 16.6712136 | D17: 18.61749221 | E17: 20.22146531 | F17: 7.752544583 | G17: 7.3306055 | H17: 8.775566233 | I17: 7.960377264 | J17: 20.46398067 | K17: 15.809914 | L17: 17.64695305 | M17: 19.12615541
A18: 2013 | B18: 21.32342863 | C18: 16.54070667 | D18: 17.8846273 | E18: 19.88762373 | F18: 6.253866957 | G18: 7.028679725 | H18: 8.775566233 | I18: 7.858478685 | J18: 20.27019914 | K18: 15.31218208 | L18: 16.83951267 | M18: 18.7651457
A19: 2014 | B19: 21.14912095 | C19: 16.67546708 | D19: 17.43292136 | E19: 19.55378215 | F19: 7.032901739 | G19: 7.051064239 | H19: 8.775566233 | I19: 7.756580106 | J19: 20.0764176 | K19: 15.36467792 | L19: 16.27873769 | M19: 18.40413599
A20: 2015 | B20: 20.97481328 | C20: 17.79144792 | D20: 17.33799769 | E20: 19.21994057 | F20: 6.049556522 | G20: 6.91964221 | H20: 8.775566233 | I20: 7.654681527 | J20: 19.88263607 | K20: 16.0725775 | L20: 15.98940286 | M20: 18.04312627
A21: 2016 | B21: 20.8005056 | C21: 14.6322275 | D21: 16.46221255 | E21: 18.88609899 | F21: 6.084567917 | G21: 6.634687543 | H21: 8.775566233 | I21: 7.552782948 | J21: 19.68885454 | K21: 13.72397083 | L21: 15.25666447 | M21: 17.68211656
A22: 2017 | B22: 20.62619793 | C22: 15.92501625 | D22: 16.31297308 | E22: 18.5522574 | F22: 7.182486957 | G22: 6.520676018 | H22: 8.775566233 | I22: 7.450884369 | J22: 19.49507301 | K22: 13.96605292 | L22: 14.88789225 | M22: 17.32110685
A23: 2018 | B23: 20.45189025 | C23: 14.63988652 | D23: 15.93280905 | E23: 18.21841582 | F23: 6.526589091 | G23: 6.575220445 | H23: 8.775566233 | I23: 7.34898579 | J23: 19.30129147 | K23: 13.57671696 | L23: 14.54079922 | M23: 16.96009713
A24: 2019 | B24: 20.27758257 | C24: 14.95737682 | D24: 15.589191 | E24: 17.88457424 | F24: 5.94664 | G24: 6.357968097 | H24: 8.775566233 | I24: 7.247087211 | J24: 19.10750994 | K24: 13.85028818 | L24: 14.23792128 | M24: 16.59908742
A25: 2020 | B25: 20.1032749 | C25: 15.2362708 | D25: 15.07815558 | E25: 17.55073266 | F25: 6.797044583 | G25: 6.507465709 | H25: 8.775566233 | I25: 7.145188632 | J25: 18.91372841 | K25: 13.5195912 | L25: 13.72732402 | M25: 16.23807771
A26: 2021 | B26: 19.92896722 | C26: 16.14911333 | D26: 15.38153274 | E26: 17.21689107 | F26: 6.261728261 | G26: 6.542897778 | H26: 8.775566233 | I26: 7.043290053 | J26: 18.71994688 | K26: 14.00644458 | L26: 13.78381877 | M26: 15.87706799
A27: 2022 | B27: 19.75465955 | E27: 16.88304949 | H27: 8.775566233 | I27: 6.941391474 | J27: 18.52616534 | M27: 15.51605828
A28: 2023 | B28: 19.58035187 | E28: 16.54920791 | H28: 8.775566233 | I28: 6.839492895 | J28: 18.33238381 | M28: 15.15504857
A29: 2024 | B29: 19.4060442 | E29: 16.21536633 | H29: 8.775566233 | I29: 6.737594316 | J29: 18.13860228 | M29: 14.79403885
A30: 2025 | B30: 19.23173652 | E30: 15.88152475 | H30: 8.775566233 | I30: 6.635695737 | J30: 17.94482075 | M30: 14.43302914
A31: 2026 | B31: 19.05742885 | E31: 15.54768316 | H31: 8.775566233 | I31: 6.533797158 | J31: 17.75103921 | M31: 14.07201943
A32: 2027 | B32: 18.88312117 | E32: 15.21384158 | H32: 8.775566233 | I32: 6.431898579 | J32: 17.55725768 | M32: 13.71100971
A33: 2028 | B33: 18.7088135 | E33: 14.88 | H33: 8.775566233 | I33: 6.33 | J33: 17.36347615 | M33: 13.35
D37: =C2&" ("&B2&")"&" RH Metrics" -> Acadia National Park, ME (ACAD) RH Metrics

Sheet PC
A1: Index

Sheet SUMMARY for pivot
A1: Index
A2: Site | B2: Name | C2: Year | D2: Uniform Rate of Progress-20% Worst Days | E2: Haze Index - 20% Worst Days | F2: Haze Index-5-year-20% Worst Days | G2: Haze Index - 20% Best Days | H2: Haze Index-5-year-20% Best Days | I2: No Degradation-20% Best Days | J2: Haze Index - 20% Most Impaired Days | K2: Haze Index-5-year-20% Most Impaired Days | L2: Uniform Rate of Progress-20% Most Impaired Days | M2: URP worst rate | N2: URP IMP rate | O2: 20% Worst NAT | P2: 20% Most Impaired NAT | Q2: Straight line path to RPG - 20% Best Days | R2: Straight line path to RPG - 20% Most Impaired Days | S2: Straight line path to RPG - 20% Worst Days | T2: Reasonable Progress Goal - 20% Most Impaired | U2: Reasonable Progress Goal - 20% Worst | AB2: nc2_12_2019_2p | AE2: endpoint 2064 DEC 2019
A3: ACAD | B3: Acadia National Park, ME | C3: 2000 | E3: 21.63668429 | F3: =IF(COUNT(#REF!)<3,"",AVERAGE(#REF!)) ->  | G3: 8.9009695 | J3: 20.7527681 | M3: =(F7-O3)/60 -> 0.1743076755 | N3: =(K7-P3)/60 -> 0.1937815325 | O3: =AC4 -> 12.43373718 | P3: =AE4 -> 10.38734098 | AB3: NAT 10 | AC3: NAT 90 | AD3: 1st year | AE3: NAT 90 IMP
A4: ACAD | B4: Acadia National Park, ME | C4: 2001 | E4: 23.2786752 | G4: 8.874270833 | J4: 22.3742984 | AA4: ACAD1 | AB4: 4.660356803 | AC4: 12.43373718 | AE4: 10.38734098
A5: ACAD | B5: Acadia National Park, ME | C5: 2002 | E5: 23.913308 | G5: 8.770072917 | J5: 22.9097568 | AA5: BRIG1 | AB5: 5.517226693 | AC5: 12.24563799 | AE5: 10.68198747
A6: ACAD | B6: Acadia National Park, ME | C6: 2003 | E6: 23.64818625 | G6: 8.769720833 | J6: 22.69669375 | AA6: DOSO1 | AB6: 3.637152897 | AC6: 10.39359203 | AE6: 8.916760581
A7: ACAD | B7: Acadia National Park, ME | C7: 2004 | D7: =IF(F7="","",F7) -> 22.89219771 | E7: 21.9841348 | F7: =IF(COUNT(E3:E7)<3,"",AVERAGE(E3:E7)) -> 22.89219771 | G7: 8.562797083 | H7: =IF(COUNT(G3:G7)<3,"",AVERAGE(G3:G7)) -> 8.775566233 | I7: =IF(H7="","",H7) -> 8.775566233 | J7: 21.3376476 | K7: =IF(COUNT(J3:J7)<3,"",AVERAGE(J3:J7)) -> 22.01423293 | L7: =IF(K7="","",K7) -> 22.01423293 | Q7: 8.775565896 | R7: 22.01423312 | S7: 22.89219797 | AA7: GRGU1 | AB7: 3.73061037 | AC7: 11.99365617 | AE7: 9.775481534
A8: ACAD | B8: Acadia National Park, ME | C8: 2005 | D8: =IF(D7="","",D7-M3) -> 22.71789003 | E8: 23.0898748 | F8: =IF(COUNT(E4:E8)<3,"",AVERAGE(E4:E8)) -> 23.18283581 | G8: 7.656128333 | H8: =IF(COUNT(G4:G8)<3,"",AVERAGE(G4:G8)) -> 8.526598 | I8: =I7 -> 8.775566233 | J8: 21.8503724 | K8: =IF(COUNT(J4:J8)<3,"",AVERAGE(J4:J8)) -> 22.23375379 | L8: =IF(L7="","",L7-N3) -> 21.8204514 | Q8: 8.673667317 | R8: 21.65322341 | S8: 22.55835639 | AA8: JARI1 | AB8: 4.389314256 | AC8: 11.12856127 | AE8: 9.466839827
A9: ACAD | B9: Acadia National Park, ME | C9: 2006 | D9: =IF(D8="","",D8-M3) -> 22.54358236 | E9: 23.37468167 | F9: 23.2020371 | G9: 8.2539025 | H9: 8.402524333 | I9: =I8 -> 8.775566233 | J9: 22.68771167 | K9: 22.29643644 | L9: =IF(L8="","",L8-N3) -> 21.62666986 | Q9: 8.571768738 | R9: 21.2922137 | S9: 22.22451481 | AA9: LYEB1 | AB9: 2.958568362 | AC9: 10.2639616 | AD9: 2012 | AE9: 8.502825252
A10: ACAD | B10: Acadia National Park, ME | C10: 2007 | D10: =IF(D9="","",D9-M3) -> 22.36927468 | E10: 21.74489583 | F10: 22.76835467 | G10: 8.275860833 | H10: 8.303681917 | I10: 8.775566233 | J10: 20.835775 | K10: 21.88164008 | L10: =IF(L9="","",L9-N3) -> 21.43288833 | Q10: 8.469870159 | R10: 20.93120398 | S10: 21.89067322 | AA10: LYBR_RHTS | AB10: 2.794466192 | AC10: 11.73485629 | AE10: 10.24306624
A11: ACAD | B11: Acadia National Park, ME | C11: 2008 | D11: =IF(D10="","",D10-M3) -> 22.19496701 | E11: 20.2050312 | F11: 22.07972366 | G11: 7.763495833 | H11: 8.102436917 | I11: 8.775566233 | J11: 19.349384 | K11: 21.21217813 | L11: =IF(L10="","",L10-N3) -> 21.2391068 | Q11: 8.36797158 | R11: 20.57019427 | S11: 21.55683164 | AA11: LYBR1 | AB11: 2.794466192 | AC11: 11.73485629 | AE11: 10.56615559
A12: ACAD | B12: Acadia National Park, ME | C12: 2009 | D12: =IF(D11="","",D11-M3) -> 22.02065933 | E12: 18.9339968 | F12: 21.46969606 | G12: 6.920979167 | H12: 7.774073333 | I12: 8.775566233 | J12: 18.1685528 | K12: 20.57835917 | L12: =IF(L11="","",L11-N3) -> 21.04532527 | Q12: 8.266073001 | R12: 20.20918456 | S12: 21.22299006 | AA12: MOOS1 | AB12: 5.017960776 | AC12: 12.00961763 | AE12: 9.976087341
A13: ACAD | B13: Acadia National Park, ME | C13: 2010 | D13: =IF(D12="","",D12-M3) -> 21.84635165 | E13: 18.26606625 | F13: 20.50493435 | G13: 6.706666667 | H13: 7.584181 | I13: 8.775566233 | J13: 17.51925167 | K13: 19.71213503 | L13: =IF(L12="","",L12-N3) -> 20.85154373 | Q13: 8.164174422 | R13: 19.84817484 | S13: 20.88914848 | AA13: SHEN1 | AB13: 3.146327357 | AC13: 11.35450585 | AE13: 9.520419573
A14: ACAD | B14: Acadia National Park, ME | C14: 2011 | D14: =IF(D13="","",D13-M3) -> 21.67204398 | E14: 19.0111532 | F14: 19.63222866 | G14: 7.50934125 | H14: 7.43526875 | I14: 8.775566233 | J14: 17.3876628 | K14: 18.65212525 | L14: =IF(L13="","",L13-N3) -> 20.6577622 | Q14: 8.062275843 | R14: 19.48716513 | S14: 20.5553069 | AA14: ADPI1 | AB14: 4.119703888 | AC14: 11.56764062 | AE14: 10.48111096
A15: ACAD | B15: Acadia National Park, ME | C15: 2012 | D15: =IF(D14="","",D14-M3) -> 21.4977363 | E15: 16.6712136 | F15: 18.61749221 | G15: 7.752544583 | H15: 7.3306055 | I15: 8.775566233 | J15: 15.809914 | K15: 17.64695305 | L15: =IF(L14="","",L14-N3) -> 20.46398067 | Q15: 7.960377264 | R15: 19.12615541 | S15: 20.22146531 | AA15: AREN1 | AB15: 4.23822524 | AC15: 11.76652617 | AE15: 10.17087769
A16: ACAD | B16: Acadia National Park, ME | C16: 2013 | D16: =IF(D15="","",D15-M3) -> 21.32342863 | E16: 16.54070667 | F16: 17.8846273 | G16: 6.253866957 | H16: 7.028679725 | I16: 8.775566233 | J16: 15.31218208 | K16: 16.83951267 | L16: =IF(L15="","",L15-N3) -> 20.27019914 | Q16: 7.858478685 | R16: 18.7651457 | S16: 19.88762373 | AA16: BALT1
A17: ACAD | B17: Acadia National Park, ME | C17: 2014 | D17: =IF(D16="","",D16-M3) -> 21.14912095 | E17: 16.67546708 | F17: 17.43292136 | G17: 7.032901739 | H17: 7.051064239 | I17: 8.775566233 | J17: 15.36467792 | K17: 16.27873769 | L17: =IF(L16="","",L16-N3) -> 20.0764176 | Q17: 7.756580106 | R17: 18.40413599 | S17: 19.55378215 | AA17: BRMA1 | AB17: 4.645854831 | AC17: 12.06562151 | AE17: 10.46456896
A18: ACAD | B18: Acadia National Park, ME | C18: 2015 | D18: =IF(D17="","",D17-M3) -> 20.97481328 | E18: 17.79144792 | F18: 17.33799769 | G18: 6.049556522 | H18: 6.91964221 | I18: 8.775566233 | J18: 16.0725775 | K18: 15.98940286 | L18: =IF(L17="","",L17-N3) -> 19.88263607 | Q18: 7.654681527 | R18: 18.04312627 | S18: 19.21994057 | AA18: CABA1 | AB18: 4.827677835 | AC18: 12.83226134 | AE18: 10.93342622
A19: ACAD | B19: Acadia National Park, ME | C19: 2016 | D19: =IF(D18="","",D18-M3) -> 20.8005056 | E19: 14.6322275 | F19: 16.46221255 | G19: 6.084567917 | H19: 6.634687543 | I19: 8.775566233 | J19: 13.72397083 | K19: 15.25666447 | L19: =IF(L18="","",L18-N3) -> 19.68885454 | Q19: 7.552782948 | R19: 17.68211656 | S19: 18.88609899 | AA19: CACO1 | AB19: 5.950773516 | AC19: 13.20040995 | AE19: 11.00077259
A20: ACAD | B20: Acadia National Park, ME | C20: 2017 | D20: =IF(D19="","",D19-M3) -> 20.62619793 | E20: 15.92501625 | F20: 16.31297308 | G20: 7.182486957 | H20: 6.520676018 | I20: 8.775566233 | J20: 13.96605292 | K20: 14.88789225 | L20: =IF(L19="","",L19-N3) -> 19.49507301 | Q20: 7.450884369 | R20: 17.32110685 | S20: 18.5522574 | AA20: COHI1 | AB20: 4.301738193 | AC20: 11.50492125
A21: ACAD | B21: Acadia National Park, ME | C21: 2018 | D21: =IF(D20="","",D20-M3) -> 20.45189025 | E21: 14.63988652 | F21: 15.93280905 | G21: 6.526589091 | H21: 6.575220445 | I21: 8.775566233 | J21: 13.57671696 | K21: 14.54079922 | L21: =IF(L20="","",L20-N3) -> 19.30129147 | Q21: 7.34898579 | R21: 16.96009713 | S21: 18.21841582 | AA21: FRRE1 | AB21: 4.481046234 | AC21: 10.88779399 | AD21: 2005 | AE21: 9.605879166
A22: ACAD | B22: Acadia National Park, ME | C22: 2019 | D22: =IF(D21="","",D21-M3) -> 20.27758257 | E22: 14.95737682 | F22: 15.589191 | G22: 5.94664 | H22: 6.357968097 | I22: 8.775566233 | J22: 13.85028818 | K22: 14.23792128 | L22: =IF(L21="","",L21-N3) -> 19.10750994 | Q22: 7.247087211 | R22: 16.59908742 | S22: 17.88457424 | AA22: LOND1 | AB22: 4.995193117 | AC22: 11.8475131 | AD22: 2011 | AE22: 10.44525621
A23: ACAD | B23: Acadia National Park, ME | C23: 2020 | D23: =IF(D22="","",D22-M3) -> 20.1032749 | E23: 15.2362708 | F23: 15.07815558 | G23: 6.797044583 | H23: 6.507465709 | I23: 8.775566233 | J23: 13.5195912 | K23: 13.72732402 | L23: =IF(L22="","",L22-N3) -> 18.91372841 | Q23: 7.145188632 | R23: 16.23807771 | S23: 17.55073266 | AA23: MAVI | AB23: 6.110411839 | AC23: 14.01103111 | AD23: 2003 | AE23: 11.10561803
A24: ACAD | B24: Acadia National Park, ME | C24: 2021 | D24: =IF(D23="","",D23-M3) -> 19.92896722 | E24: 16.14911333 | F24: 15.38153274 | G24: 6.261728261 | H24: 6.542897778 | I24: 8.775566233 | J24: 14.00644458 | K24: 13.78381877 | L24: =IF(L23="","",L23-N3) -> 18.71994688 | Q24: 7.043290053 | R24: 15.87706799 | S24: 17.21689107 | AA24: MKGO1 | AB24: 4.522861311 | AC24: 11.3577345 | AE24: 10.18005501
A25: ACAD | B25: Acadia National Park, ME | C25: 2022 | D25: =IF(D24="","",D24-M3) -> 19.75465955 | I25: 8.775566233 | L25: =IF(L24="","",L24-N3) -> 18.52616534 | Q25: 6.941391474 | R25: 15.51605828 | S25: 16.88304949 | AA25: MOMO1 | AB25: 3.67407938 | AC25: 12.42264441 | AE25: 10.90172352
A26: ACAD | B26: Acadia National Park, ME | C26: 2023 | D26: =IF(D25="","",D25-M3) -> 19.58035187 | I26: 8.775566233 | L26: =IF(L25="","",L25-N3) -> 18.33238381 | Q26: 6.839492895 | R26: 15.15504857 | S26: 16.54920791 | AA26: NEYO1 | AB26: 5.521235132 | AC26: 12.23786451 | AD26: 2005 | AE26: 10.86422042
A27: ACAD | B27: Acadia National Park, ME | C27: 2024 | D27: =IF(D26="","",D26-M3) -> 19.4060442 | I27: 8.775566233 | L27: =IF(L26="","",L26-N3) -> 18.13860228 | Q27: 6.737594316 | R27: 14.79403885 | S27: 16.21536633 | AA27: PACK1 | AB27: 3.171986745 | AC27: 11.13064237 | AD27: 2008 | AE27: 9.546292209
A28: ACAD | B28: Acadia National Park, ME | C28: 2025 | D28: =IF(D27="","",D27-M3) -> 19.23173652 | I28: 8.775566233 | L28: =IF(L27="","",L27-N3) -> 17.94482075 | Q28: 6.635695737 | R28: 14.43302914 | S28: 15.88152475 | AA28: OLTO1 | AB28: 4.861894414 | AC28: 12.65380536 | AD28: 2003
A29: ACAD | B29: Acadia National Park, ME | C29: 2026 | D29: =IF(D28="","",D28-M3) -> 19.05742885 | I29: 8.775566233 | L29: =IF(L28="","",L28-N3) -> 17.75103921 | Q29: 6.533797158 | R29: 14.07201943 | S29: 15.54768316 | AA29: PENO1 | AB29: 4.620039877 | AC29: 12.71455577 | AD29: 2006 | AE29: 10.33967451
A30: ACAD | B30: Acadia National Park, ME | C30: 2027 | D30: =IF(D29="","",D29-M3) -> 18.88312117 | I30: 8.775566233 | L30: =IF(L29="","",L29-N3) -> 17.55725768 | Q30: 6.431898579 | R30: 13.71100971 | S30: 15.21384158 | AA30: PMRF1 | AB30: 3.855730935 | AC30: 11.84076808 | AE30: 10.28532843
A31: ACAD | B31: Acadia National Park, ME | C31: 2028 | D31: =IF(D30="","",D30-M3) -> 18.7088135 | I31: 8.775566233 | L31: =IF(L30="","",L30-N3) -> 17.36347615 | Q31: 6.33 | R31: 13.35 | S31: 14.88 | T31: 13.35 | U31: 14.88 | AA31: PRIS1 | AB31: 4.909808328 | AC31: 12.42087775 | AE31: 10.24276877
A32: BRIG | B32: Brigantine Wilderness Area, NJ | C32: 2000 | E32: 28.95484333 | G32: 14.2636855 | J32: 27.36636333 | M32: =(F36-O32)/60 -> 0.2793488731 | N32: =(K36-P32)/60 -> 0.2791374077 | O32: =AC5 -> 12.24563799 | P32: =AE5 -> 10.68198747 | AA32: QUCI1 | AB32: 4.956876657 | AC32: 10.96883121 | AE32: 9.771411298
A33: BRIG | B33: Brigantine Wilderness Area, NJ | C33: 2001 | E33: 28.38178636 | G33: 13.80449667 | J33: 27.07211773 | AA33: QURE1 | AB33: 3.922886558 | AC33: 12.04788345 | AE33: 10.81093564
A34: BRIG | B34: Brigantine Wilderness Area, NJ | C34: 2002 | E34: 29.30921364 | G34: 14.83233 | J34: 26.53276864 | AA34: WASH1 | AB34: 5.517495121 | AC34: 11.86419266 | AE34: 9.850433234
A35: BRIG | B35: Brigantine Wilderness Area, NJ | C35: 2003 | E35: 29.79449333 | G35: 14.38665304 | J35: 28.49253917
A36: BRIG | B36: Brigantine Wilderness Area, NJ | C36: 2004 | D36: =IF(F36="","",F36) -> 29.00657037 | E36: 28.5925152 | F36: 29.00657037 | G36: 14.36158583 | H36: 14.32975021 | I36: =IF(H36="","",H36) -> 14.32975021 | J36: 27.6873708 | K36: 27.43023193 | L36: =IF(K36="","",K36) -> 27.43023193 | Q36: 14.33402199 | R36: 27.43023193 | S36: 29.00657052
A37: BRIG | B37: Brigantine Wilderness Area, NJ | C37: 2005 | D37: =IF(D36="","",D36-M32) -> 28.7272215 | E37: 29.62453583 | F37: 29.14050887 | G37: 14.60920292 | H37: 14.39885369 | I37: =I36 -> 14.32975021 | J37: 28.80912333 | K37: 27.71878393 | L37: =IF(L36="","",L36-N32) -> 27.15109453 | Q37: 14.17302107 | R37: 27.0360556 | S37: 28.60463008
A38: BRIG | B38: Brigantine Wilderness Area, NJ | C38: 2006 | D38: =IF(D37="","",D37-M32) -> 28.44787263 | E38: 28.49617952 | F38: 29.16338751 | G38: 15.3497845 | H38: 14.70791126 | I38: =I37 -> 14.32975021 | J38: 26.88325952 | K38: 27.68101229 | L38: =IF(L37="","",L37-N32) -> 26.87195712 | Q38: 14.01202016 | R38: 26.64187927 | S38: 28.20268964
A39: BRIG | B39: Brigantine Wilderness Area, NJ | C39: 2007 | D39: =IF(D38="","",D38-M32) -> 28.16852375 | E39: 27.06988261 | F39: 28.7155213 | G39: 12.73726955 | H39: 14.28889917 | I39: 14.32975021 | J39: 26.10378348 | K39: 27.59521526 | L39: =IF(L38="","",L38-N32) -> 26.59281971 | Q39: 13.85101924 | R39: 26.24770294 | S39: 27.8007492
A40: BRIG | B40: Brigantine Wilderness Area, NJ | C40: 2008 | D40: =IF(D39="","",D39-M32) -> 27.88917488 | F40: 28.44577829 | H40: 14.2644607 | I40: 14.32975021 | K40: 27.37088428 | L40: =IF(L39="","",L39-N32) -> 26.3136823 | Q40: 13.69001832 | R40: 25.85352661 | S40: 27.39880877
A41: BRIG | B41: Brigantine Wilderness Area, NJ | C41: 2009 | D41: =IF(D40="","",D40-M32) -> 27.60982601 | E41: 24.173346 | F41: 27.34098599 | G41: 12.78062583 | H41: 13.8692207 | I41: 14.32975021 | J41: 23.029386 | K41: 26.20638808 | L41: =IF(L40="","",L40-N32) -> 26.03454489 | Q41: 13.52901741 | R41: 25.45935028 | S41: 26.99686833
A42: BRIG | B42: Brigantine Wilderness Area, NJ | C42: 2010 | D42: =IF(D41="","",D41-M32) -> 27.33047713 | E42: 25.27897 | F42: 26.25459453 | G42: 11.81662208 | H42: 13.17107549 | I42: 14.32975021 | J42: 24.5091392 | K42: 25.13139205 | L42: =IF(L41="","",L41-N32) -> 25.75540749 | Q42: 13.36801649 | R42: 25.06517395 | S42: 26.59492789
A43: BRIG | B43: Brigantine Wilderness Area, NJ | C43: 2011 | D43: =IF(D42="","",D42-M32) -> 27.05112826 | E43: 25.83363826 | F43: 25.58895922 | G43: 12.91688304 | H43: 12.56285013 | I43: 14.32975021 | J43: 22.66475217 | K43: 24.07676521 | L43: =IF(L42="","",L42-N32) -> 25.47627008 | Q43: 13.20701557 | R43: 24.67099762 | S43: 26.19298745
A44: BRIG | B44: Brigantine Wilderness Area, NJ | C44: 2012 | D44: =IF(D43="","",D43-M32) -> 26.77177939 | E44: 21.88349708 | F44: 24.29236284 | G44: 11.92667609 | H44: 12.36020176 | I44: 14.32975021 | J44: 20.95191583 | K44: 22.7887983 | L44: =IF(L43="","",L43-N32) -> 25.19713267 | Q44: 13.04601466 | R44: 24.27682129 | S44: 25.79104701
A45: BRIG | B45: Brigantine Wilderness Area, NJ | C45: 2013 | D45: =IF(D44="","",D44-M32) -> 26.49243052 | E45: 21.50777174 | F45: 23.73544462 | G45: 11.80141864 | H45: 12.24844514 | I45: 14.32975021 | J45: 20.11802565 | K45: 22.25464377 | L45: =IF(L44="","",L44-N32) -> 24.91799526 | Q45: 12.88501374 | R45: 23.88264496 | S45: 25.38910657
A46: BRIG | B46: Brigantine Wilderness Area, NJ | C46: 2014 | D46: =IF(D45="","",D45-M32) -> 26.21308164 | E46: 22.03180565 | F46: 23.30713655 | G46: 11.663865 | H46: 12.02509297 | I46: 14.32975021 | J46: 21.08857652 | K46: 21.86648188 | L46: =IF(L45="","",L45-N32) -> 24.63885786 | Q46: 12.72401283 | R46: 23.48846863 | S46: 24.98716614
A47: BRIG | B47: Brigantine Wilderness Area, NJ | C47: 2015 | D47: =IF(D46="","",D46-M32) -> 25.93373277 | E47: 21.83752292 | F47: 22.61884713 | G47: 11.4413487 | H47: 11.95003829 | I47: 14.32975021 | J47: 20.8380025 | K47: 21.13225454 | L47: =IF(L46="","",L46-N32) -> 24.35972045 | Q47: 12.56301191 | R47: 23.0942923 | S47: 24.5852257
A48: BRIG | B48: Brigantine Wilderness Area, NJ | C48: 2016 | D48: =IF(D47="","",D47-M32) -> 25.6543839 | E48: 20.83238625 | F48: 21.61859673 | G48: 11.11993304 | H48: 11.59064829 | I48: 14.32975021 | J48: 19.18383875 | K48: 20.43607185 | L48: =IF(L47="","",L47-N32) -> 24.08058304 | Q48: 12.40201099 | R48: 22.70011597 | S48: 24.18328526
A49: BRIG | B49: Brigantine Wilderness Area, NJ | C49: 2017 | D49: =IF(D48="","",D48-M32) -> 25.37503502 | E49: 20.27733478 | F49: 21.29736427 | G49: 11.35985455 | H49: 11.47728398 | I49: 14.32975021 | J49: 18.08728522 | K49: 19.86314573 | L49: =IF(L48="","",L48-N32) -> 23.80144563 | Q49: 12.24101008 | R49: 22.30593964 | S49: 23.78134482
A50: BRIG | B50: Brigantine Wilderness Area, NJ | C50: 2018 | D50: =IF(D49="","",D49-M32) -> 25.09568615 | E50: 19.333482 | F50: 20.86250632 | G50: 10.69702263 | H50: 11.25640478 | I50: 14.32975021 | J50: 17.36729 | K50: 19.3129986 | L50: =IF(L49="","",L49-N32) -> 23.52230822 | Q50: 12.08000916 | R50: 21.91176331 | S50: 23.37940438
A51: BRIG | B51: Brigantine Wilderness Area, NJ | C51: 2019 | D51: =IF(D50="","",D50-M32) -> 24.81633728 | E51: 18.604176 | F51: 20.17698039 | G51: 9.444072632 | H51: 10.81244631 | I51: 14.32975021 | J51: 17.1862755 | K51: 18.53253839 | L51: =IF(L50="","",L50-N32) -> 23.24317082 | Q51: 11.91900825 | R51: 21.51758697 | S51: 22.97746394
A52: BRIG | B52: Brigantine Wilderness Area, NJ | C52: 2020 | D52: =IF(D51="","",D51-M32) -> 24.5369884 | F52: 19.76184476 | H52: 10.65522071 | I52: 14.32975021 | K52: 17.95617237 | L52: =IF(L51="","",L51-N32) -> 22.96403341 | Q52: 11.75800733 | R52: 21.12341064 | S52: 22.57552351
A53: BRIG | B53: Brigantine Wilderness Area, NJ | C53: 2021 | D53: =IF(D52="","",D52-M32) -> 24.25763953 | E53: 19.62771913 | F53: 19.46067798 | G53: 10.1058 | H53: 10.40168745 | I53: 14.32975021 | J53: 16.96767522 | K53: 17.40213148 | L53: =IF(L52="","",L52-N32) -> 22.684896 | Q53: 11.59700641 | R53: 20.72923431 | S53: 22.17358307
A54: BRIG | B54: Brigantine Wilderness Area, NJ | C54: 2022 | D54: =IF(D53="","",D53-M32) -> 23.97829066 | I54: 14.32975021 | L54: =IF(L53="","",L53-N32) -> 22.40575859 | Q54: 11.4360055 | R54: 20.33505798 | S54: 21.77164263
A55: BRIG | B55: Brigantine Wilderness Area, NJ | C55: 2023 | D55: =IF(D54="","",D54-M32) -> 23.69894178 | I55: 14.32975021 | L55: =IF(L54="","",L54-N32) -> 22.12662119 | Q55: 11.27500458 | R55: 19.94088165 | S55: 21.36970219
A56: BRIG | B56: Brigantine Wilderness Area, NJ | C56: 2024 | D56: =IF(D55="","",D55-M32) -> 23.41959291 | I56: 14.32975021 | L56: =IF(L55="","",L55-N32) -> 21.84748378 | Q56: 11.11400366 | R56: 19.54670532 | S56: 20.96776175
A57: BRIG | B57: Brigantine Wilderness Area, NJ | C57: 2025 | D57: =IF(D56="","",D56-M32) -> 23.14024404 | I57: 14.32975021 | L57: =IF(L56="","",L56-N32) -> 21.56834637 | Q57: 10.95300275 | R57: 19.15252899 | S57: 20.56582131
A58: BRIG | B58: Brigantine Wilderness Area, NJ | C58: 2026 | D58: =IF(D57="","",D57-M32) -> 22.86089517 | I58: 14.32975021 | L58: =IF(L57="","",L57-N32) -> 21.28920896 | Q58: 10.79200183 | R58: 18.75835266 | S58: 20.16388088
A59: BRIG | B59: Brigantine Wilderness Area, NJ | C59: 2027 | D59: =IF(D58="","",D58-M32) -> 22.58154629 | I59: 14.32975021 | L59: =IF(L58="","",L58-N32) -> 21.01007156 | Q59: 10.63100092 | R59: 18.36417633 | S59: 19.76194044
A60: BRIG | B60: Brigantine Wilderness Area, NJ | C60: 2028 | D60: =IF(D59="","",D59-M32) -> 22.30219742 | I60: 14.32975021 | L60: =IF(L59="","",L59-N32) -> 20.73093415 | Q60: 10.47 | R60: 17.97 | S60: 19.36 | T60: 17.97 | U60: 19.36
A61: DOSO | B61: Dolly Sods Wilderness, WV | C61: 2000 | E61: 29.0344355 | G61: 12.96049632 | J61: 27.7167895 | M61: =(F65-O61)/60 -> 0.3108694229 | N61: =(K65-P61)/60 -> 0.3228542618 | O61: =AC6 -> 10.39359203 | P61: =AE6 -> 8.916760581
A62: DOSO | B62: Dolly Sods Wilderness, WV | C62: 2001 | E62: 28.24022435 | G62: 13.30276739 | J62: 27.5326313
A63: DOSO | B63: Dolly Sods Wilderness, WV | C63: 2002 | E63: 28.46718739 | G63: 11.91363727 | J63: 27.95815522
A64: DOSO | B64: Dolly Sods Wilderness, WV | C64: 2003 | E64: 29.72805739 | G64: 11.54182565 | J64: 29.32585783
A65: DOSO | B65: Dolly Sods Wilderness, WV | C65: 2004 | D65: =IF(F65="","",F65) -> 29.04575741 | E65: 29.7588824 | F65: 29.04575741 | G65: 11.67128792 | H65: 12.27800291 | I65: =IF(H65="","",H65) -> 12.27800291 | J65: 28.9066476 | K65: 28.28801629 | L65: =IF(K65="","",K65) -> 28.28801629 | Q65: 12.27800258 | R65: 28.28801648 | S65: 29.04575791
A66: DOSO | B66: Dolly Sods Wilderness, WV | C66: 2005 | D66: =IF(D65="","",D65-M61) -> 28.73488798 | E66: 30.89215167 | F66: 29.41730064 | G66: 11.91247261 | H66: 12.06839817 | I66: =I65 -> 12.27800291 | J66: 30.45488167 | K66: 28.83563472 | L66: =IF(L65="","",L65-N61) -> 27.96516203 | Q66: 12.06933581 | R66: 27.73809913 | S66: 28.49093466
A67: DOSO | B67: Dolly Sods Wilderness, WV | C67: 2006 | D67: =IF(D66="","",D66-M61) -> 28.42401856 | E67: 29.80104458 | F67: 29.72946469 | G67: 10.57144348 | H67: 11.52213339 | I67: =I66 -> 12.27800291 | J67: 28.91221208 | K67: 29.11155088 | L67: =IF(L66="","",L66-N61) -> 27.64230777 | Q67: 11.86066903 | R67: 27.18818177 | S67: 27.93611142
A68: DOSO | B68: Dolly Sods Wilderness, WV | C68: 2007 | D68: =IF(D67="","",D67-M61) -> 28.11314914 | E68: 29.358868 | F68: 29.90780081 | G68: 10.2022375 | H68: 11.17985343 | I68: 12.27800291 | J68: 28.1489772 | K68: 29.14971528 | L68: =IF(L67="","",L67-N61) -> 27.3194535 | Q68: 11.65200226 | R68: 26.63826442 | S68: 27.38128817
A69: DOSO | B69: Dolly Sods Wilderness, WV | C69: 2008 | D69: =IF(D68="","",D68-M61) -> 27.80227971 | E69: 25.3203064 | F69: 29.02625061 | G69: 9.43561125 | H69: 10.75861055 | I69: 12.27800291 | J69: 24.3691208 | K69: 28.15836787 | L69: =IF(L68="","",L68-N61) -> 26.99659924 | Q69: 11.44333548 | R69: 26.08834707 | S69: 26.82646492
A70: DOSO | B70: Dolly Sods Wilderness, WV | C70: 2009 | D70: =IF(D69="","",D69-M61) -> 27.49141029 | E70: 22.16685417 | F70: 27.50784496 | G70: 8.702354167 | H70: 10.1648238 | I70: 12.27800291 | J70: 21.8890125 | K70: 26.75484085 | L70: =IF(L69="","",L69-N61) -> 26.67374498 | Q70: 11.23466871 | R70: 25.53842971 | S70: 26.27164168
A71: DOSO | B71: Dolly Sods Wilderness, WV | C71: 2010 | D71: =IF(D70="","",D70-M61) -> 27.18054087 | E71: 24.0164625 | F71: 26.13270713 | G71: 9.743389565 | H71: 9.731007192 | I71: 12.27800291 | J71: 22.67980958 | K71: 25.19982643 | L71: =IF(L70="","",L70-N61) -> 26.35089072 | Q71: 11.02600194 | R71: 24.98851236 | S71: 25.71681843
A72: DOSO | B72: Dolly Sods Wilderness, WV | C72: 2011 | D72: =IF(D71="","",D71-M61) -> 26.86967145 | E72: 24.501015 | F72: =IF(COUNT(E68:E72)<3,"",AVERAGE(E68:E72)) -> 25.07270121 | G72: 8.750023913 | H72: =IF(COUNT(G68:G72)<3,"",AVERAGE(G68:G72)) -> 9.366723279 | I72: 12.27800291 | J72: 23.75251792 | K72: =IF(COUNT(J68:J72)<3,"",AVERAGE(J68:J72)) -> 24.1678876 | L72: =IF(L71="","",L71-N61) -> 26.02803646 | Q72: 10.81733516 | R72: 24.43859501 | S72: 25.16199519
A73: DOSO | B73: Dolly Sods Wilderness, WV | C73: 2012 | D73: =IF(D72="","",D72-M61) -> 26.55880202 | E73: 21.37631958 | F73: 23.47619153 | G73: 9.593641304 | H73: 9.24500404 | I73: 12.27800291 | J73: 20.87877583 | K73: 22.71384733 | L73: =IF(L72="","",L72-N61) -> 25.7051822 | Q73: 10.60866839 | R73: 23.88867765 | S73: 24.60717194
A74: DOSO | B74: Dolly Sods Wilderness, WV | C74: 2013 | D74: =IF(D73="","",D73-M61) -> 26.2479326 | E74: 19.94202958 | F74: 22.40053617 | G74: 8.342917826 | H74: 9.026465355 | I74: 12.27800291 | J74: 18.82701208 | K74: 21.60542558 | L74: =IF(L73="","",L73-N61) -> 25.38232793 | Q74: 10.40000161 | R74: 23.3387603 | S74: 24.05234869
A75: DOSO | B75: Dolly Sods Wilderness, WV | C75: 2014 | D75: =IF(D74="","",D74-M61) -> 25.93706318 | E75: 20.2505075 | F75: 22.01726683 | G75: 8.516818696 | H75: 8.989358261 | I75: 12.27800291 | J75: 19.41274375 | K75: 21.11017183 | L75: =IF(L74="","",L74-N61) -> 25.05947367 | Q75: 10.19133484 | R75: 22.78884295 | S75: 23.49752545
A76: DOSO | B76: Dolly Sods Wilderness, WV | C76: 2015 | D76: =IF(D75="","",D75-M61) -> 25.62619375 | E76: 20.30119 | F76: 21.27421233 | G76: 5.883614348 | H76: 8.217403217 | I76: 12.27800291 | J76: 18.81964042 | K76: 20.338138 | L76: =IF(L75="","",L75-N61) -> 24.73661941 | Q76: 9.982668065 | R76: 22.23892559 | S76: 22.9427022
A77: DOSO | B77: Dolly Sods Wilderness, WV | C77: 2016 | D77: =IF(D76="","",D76-M61) -> 25.31532433 | E77: 18.06810875 | F77: 19.98763108 | G77: 6.995272917 | H77: 7.866453018 | I77: 12.27800291 | J77: 16.75680042 | K77: 18.9389945 | L77: =IF(L76="","",L76-N61) -> 24.41376515 | Q77: 9.774001291 | R77: 21.68900824 | S77: 22.38787895
A78: DOSO | B78: Dolly Sods Wilderness, WV | C78: 2017 | D78: =IF(D77="","",D77-M61) -> 25.00445491 | E78: 17.30718042 | F78: 19.17380325 | G78: 6.46637087 | H78: 7.240998931 | I78: 12.27800291 | J78: 16.15093958 | K78: 17.99342725 | L78: =IF(L77="","",L77-N61) -> 24.09091089 | Q78: 9.565334517 | R78: 21.13909089 | S78: 21.83305571
A79: DOSO | B79: Dolly Sods Wilderness, WV | C79: 2018 | D79: =IF(D78="","",D78-M61) -> 24.69358549 | E79: 17.93154375 | F79: 18.77170608 | G79: 5.5163 | H79: 6.675675366 | I79: 12.27800291 | J79: 17.10233958 | K79: 17.64849275 | L79: =IF(L78="","",L78-N61) -> 23.76805662 | Q79: 9.356667742 | R79: 20.58917353 | S79: 21.27823246
A80: DOSO | B80: Dolly Sods Wilderness, WV | C80: 2019 | D80: =IF(D79="","",D79-M61) -> 24.38271606 | E80: 17.39155636 | F80: 18.19991586 | G80: 6.037753333 | H80: 6.179862293 | I80: 12.27800291 | J80: 16.34009045 | K80: 17.03396209 | L80: =IF(L79="","",L79-N61) -> 23.44520236 | Q80: 9.148000968 | R80: 20.03925618 | S80: 20.72340922
A81: DOSO | B81: Dolly Sods Wilderness, WV | C81: 2020 | D81: =IF(D80="","",D80-M61) -> 24.07184664 | E81: 15.1379616 | F81: 17.16727018 | G81: 5.815075833 | H81: 6.166154591 | I81: 12.27800291 | J81: 13.7679876 | K81: 16.02363153 | L81: =IF(L80="","",L80-N61) -> 23.1223481 | Q81: 8.939334194 | R81: 19.48933883 | S81: 20.16858597
A82: DOSO | B82: Dolly Sods Wilderness, WV | C82: 2021 | D82: =IF(D81="","",D81-M61) -> 23.76097722 | E82: 17.87310917 | F82: 17.12827026 | G82: 6.66812087 | H82: 6.100724181 | I82: 12.27800291 | J82: 15.49225208 | K82: 15.77072186 | L82: =IF(L81="","",L81-N61) -> 22.79949384 | Q82: 8.73066742 | R82: 18.93942147 | S82: 19.61376272
A83: DOSO | B83: Dolly Sods Wilderness, WV | C83: 2022 | D83: =IF(D82="","",D82-M61) -> 23.45010779 | I83: 12.27800291 | L83: =IF(L82="","",L82-N61) -> 22.47663958 | Q83: 8.522000645 | R83: 18.38950412 | S83: 19.05893948
A84: DOSO | B84: Dolly Sods Wilderness, WV | C84: 2023 | D84: =IF(D83="","",D83-M61) -> 23.13923837 | I84: 12.27800291 | L84: =IF(L83="","",L83-N61) -> 22.15378532 | Q84: 8.313333871 | R84: 17.83958677 | S84: 18.50411623
A85: DOSO | B85: Dolly Sods Wilderness, WV | C85: 2024 | D85: =IF(D84="","",D84-M61) -> 22.82836895 | I85: 12.27800291 | L85: =IF(L84="","",L84-N61) -> 21.83093105 | Q85: 8.104667097 | R85: 17.28966941 | S85: 17.94929298
A86: DOSO | B86: Dolly Sods Wilderness, WV | C86: 2025 | D86: =IF(D85="","",D85-M61) -> 22.51749952 | I86: 12.27800291 | L86: =IF(L85="","",L85-N61) -> 21.50807679 | Q86: 7.896000323 | R86: 16.73975206 | S86: 17.39446974
A87: DOSO | B87: Dolly Sods Wilderness, WV | C87: 2026 | D87: =IF(D86="","",D86-M61) -> 22.2066301 | I87: 12.27800291 | L87: =IF(L86="","",L86-N61) -> 21.18522253 | Q87: 7.687333548 | R87: 16.18983471 | S87: 16.83964649
A88: DOSO | B88: Dolly Sods Wilderness, WV | C88: 2027 | D88: =IF(D87="","",D87-M61) -> 21.89576068 | I88: 12.27800291 | L88: =IF(L87="","",L87-N61) -> 20.86236827 | Q88: 7.478666774 | R88: 15.63991735 | S88: 16.28482325
A89: DOSO | B89: Dolly Sods Wilderness, WV | C89: 2028 | D89: =IF(D88="","",D88-M61) -> 21.58489126 | I89: 12.27800291 | L89: =IF(L88="","",L88-N61) -> 20.53951401 | Q89: 7.27 | R89: 15.09 | S89: 15.73 | T89: 15.09 | U89: 15.73
A90: GRGU | B90: Great Gulf Wilderness Area, NH | C90: 2000 | M90: =(F94-O90)/60 -> 0.1796113795 | N90: =(K94-P90)/60 -> 0.2017440205 | O90: =AC7 -> 11.99365617 | P90: =AE7 -> 9.775481534
A91: GRGU | B91: Great Gulf Wilderness Area, NH | C91: 2001 | E91: 23.29293826 | G91: 8.261430455 | J91: 22.46526522
A92: GRGU | B92: Great Gulf Wilderness Area, NH | C92: 2002 | E92: 24.83852458 | G92: 7.77047 | J92: 23.42895375
A93: GRGU | B93: Great Gulf Wilderness Area, NH | C93: 2003 | E93: 21.587125 | G93: 6.944663478 | J93: 20.65197667
A94: GRGU | B94: Great Gulf Wilderness Area, NH | C94: 2004 | D94: =IF(F94="","",F94) -> 22.77033894 | E94: 21.36276792 | F94: 22.77033894 | G94: 7.613094783 | H94: 7.647414679 | I94: =IF(H94="","",H94) -> 7.647414679 | J94: 20.97429542 | K94: 21.88012276 | L94: =IF(K94="","",K94) -> 21.88012276 | Q94: 7.663096272 | R94: 21.92585315 | S94: 22.92585315
A95: GRGU | B95: Great Gulf Wilderness Area, NH | C95: 2005 | D95: =IF(D94="","",D94-M90) -> 22.59072756 | E95: 21.52734609 | F95: 22.52174037 | G95: 6.686348636 | H95: 7.45520147 | I95: =I94 -> 7.647414679 | J95: 20.50660435 | K95: 21.60541908 | L95: =IF(L94="","",L94-N90) -> 21.67837874 | Q95: 7.554633928 | R95: 21.51227594 | S95: 22.5176926
A96: GRGU | B96: Great Gulf Wilderness Area, NH | C96: 2006 | D96: =IF(D95="","",D95-M90) -> 22.41111618 | E96: 21.124665 | F96: 22.08808572 | G96: 6.427488333 | H96: 7.088413046 | I96: =I95 -> 7.647414679 | J96: 19.73550083 | K96: 21.0594662 | L96: =IF(L95="","",L95-N90) -> 21.47663472 | Q96: 7.446171583 | R96: 21.09869872 | S96: 22.10953205
A97: GRGU | B97: Great Gulf Wilderness Area, NH | C97: 2007 | D97: =IF(D96="","",D96-M90) -> 22.2315048 | E97: 21.34844609 | F97: 21.39007002 | G97: 6.862025 | H97: 6.906724046 | I97: 7.647414679 | J97: 21.06284087 | K97: 20.58624363 | L97: =IF(L96="","",L96-N90) -> 21.2748907 | Q97: 7.337709238 | R97: 20.68512151 | S97: 21.70137151
A98: GRGU | B98: Great Gulf Wilderness Area, NH | C98: 2008 | D98: =IF(D97="","",D97-M90) -> 22.05189342 | E98: 16.77739591 | F98: 20.4281242 | G98: 6.26001 | H98: 6.76979335 | I98: 7.647414679 | J98: 16.09566318 | K98: 19.67498093 | L98: =IF(L97="","",L97-N90) -> 21.07314668 | Q98: 7.229246894 | R98: 20.27154429 | S98: 21.29321096
A99: GRGU | B99: Great Gulf Wilderness Area, NH | C99: 2009 | D99: =IF(D98="","",D98-M90) -> 21.87228204 | F99: 20.19446327 | H99: 6.558967992 | I99: 7.647414679 | K99: 19.35015231 | L99: =IF(L98="","",L98-N90) -> 20.87140266 | Q99: 7.120784549 | R99: 19.85796708 | S99: 20.88505041
A100: GRGU | B100: Great Gulf Wilderness Area, NH | C100: 2010 | D100: =IF(D99="","",D99-M90) -> 21.69267066 | F100: 19.750169 | H100: 6.516507778 | I100: 7.647414679 | K100: 18.96466829 | L100: =IF(L99="","",L99-N90) -> 20.66965864 | Q100: 7.012322204 | R100: 19.44438986 | S100: 20.47688986
A101: GRGU | B101: Great Gulf Wilderness Area, NH | C101: 2011 | D101: =IF(D100="","",D100-M90) -> 21.51305928 | E101: 18.89755364 | F101: 19.00779854 | G101: 6.392631429 | H101: 6.50488881 | I101: 7.647414679 | J101: 17.47569636 | K101: 18.21140014 | L101: =IF(L100="","",L100-N90) -> 20.46791462 | Q101: 6.90385986 | R101: 19.03081265 | S101: 20.06872932
A102: GRGU | B102: Great Gulf Wilderness Area, NH | C102: 2012 | D102: =IF(D101="","",D101-M90) -> 21.3334479 | E102: 15.96647478 | F102: 17.21380811 | G102: 5.814406364 | H102: 6.155682597 | I102: 7.647414679 | J102: 14.85867 | K102: 16.14334318 | L102: =IF(L101="","",L101-N90) -> 20.2661706 | Q102: 6.795397515 | R102: 18.61723543 | S102: 19.66056877
A103: GRGU | B103: Great Gulf Wilderness Area, NH | C103: 2013 | D103: =IF(D102="","",D102-M90) -> 21.15383652 | E103: 14.98223043 | F103: 16.61541962 | G103: 5.411648182 | H103: 5.872895325 | I103: 7.647414679 | J103: 13.8735287 | K103: 15.40263169 | L103: =IF(L102="","",L102-N90) -> 20.06442658 | Q103: 6.68693517 | R103: 18.20365822 | S103: 19.25240822
A104: GRGU | B104: Great Gulf Wilderness Area, NH | C104: 2014 | D104: =IF(D103="","",D103-M90) -> 20.97422515 | E104: 16.26951304 | F104: 16.52894297 | G104: 5.75410913 | H104: 5.843198776 | I104: 7.647414679 | J104: 15.18558478 | K104: 15.34836996 | L104: =IF(L103="","",L103-N90) -> 19.86268256 | Q104: 6.578472825 | R104: 17.790081 | S104: 18.84424767
A105: GRGU | B105: Great Gulf Wilderness Area, NH | C105: 2015 | D105: =IF(D104="","",D104-M90) -> 20.79461377 | E105: 15.64494409 | F105: 16.3521432 | G105: 4.916600952 | H105: 5.657879211 | I105: 7.647414679 | J105: 14.43662 | K105: 15.16601997 | L105: =IF(L104="","",L104-N90) -> 19.66093854 | Q105: 6.470010481 | R105: 17.37650379 | S105: 18.43608712
A106: GRGU | B106: Great Gulf Wilderness Area, NH | C106: 2016 | D106: =IF(D105="","",D105-M90) -> 20.61500239 | E106: 13.15865875 | F106: 15.20436422 | G106: 4.689127826 | H106: 5.317178491 | I106: 7.647414679 | J106: 11.23315792 | K106: 13.91751228 | L106: =IF(L105="","",L105-N90) -> 19.45919452 | Q106: 6.361548136 | R106: 16.96292658 | S106: 18.02792658
A107: GRGU | B107: Great Gulf Wilderness Area, NH | C107: 2017 | D107: =IF(D106="","",D106-M90) -> 20.43539101 | E107: 13.88306348 | F107: 14.78768196 | G107: 5.221343182 | H107: 5.198565855 | I107: 7.647414679 | J107: 11.81334739 | K107: 13.30844776 | L107: =IF(L106="","",L106-N90) -> 19.2574505 | Q107: 6.253085791 | R107: 16.54934936 | S107: 17.61976603
A108: GRGU | B108: Great Gulf Wilderness Area, NH | C108: 2018 | D108: =IF(D107="","",D107-M90) -> 20.25577963 | E108: 15.02496696 | F108: 14.79622926 | G108: 4.365012174 | H108: 4.989238653 | I108: 7.647414679 | J108: 12.70120217 | K108: 13.07398245 | L108: =IF(L107="","",L107-N90) -> 19.05570648 | Q108: 6.144623447 | R108: 16.13577215 | S108: 17.21160548
A109: GRGU | B109: Great Gulf Wilderness Area, NH | C109: 2019 | D109: =IF(D108="","",D108-M90) -> 20.07616825 | E109: 13.10325478 | F109: 14.16297761 | G109: 4.299470909 | H109: 4.698311009 | I109: 7.647414679 | J109: 11.4660213 | K109: 12.33006976 | L109: =IF(L108="","",L108-N90) -> 18.85396246 | Q109: 6.036161102 | R109: 15.72219493 | S109: 16.80344493
A110: GRGU | B110: Great Gulf Wilderness Area, NH | C110: 2020 | D110: =IF(D109="","",D109-M90) -> 19.89655687 | E110: 12.73546958 | F110: 13.58108271 | G110: 4.924611739 | H110: 4.699913166 | I110: 7.647414679 | J110: 11.04322417 | K110: 11.65139059 | L110: =IF(L109="","",L109-N90) -> 18.65221844 | Q110: 5.927698757 | R110: 15.30861772 | S110: 16.39528438
A111: GRGU | B111: Great Gulf Wilderness Area, NH | C111: 2021 | D111: =IF(D110="","",D110-M90) -> 19.71694549 | E111: 14.56034087 | F111: 13.86141913 | G111: 4.544662174 | H111: 4.671020036 | I111: 7.647414679 | J111: 12.49002217 | K111: 11.90276344 | L111: =IF(L110="","",L110-N90) -> 18.45047441 | Q111: 5.819236413 | R111: 14.8950405 | S111: 15.98712384
A112: GRGU | B112: Great Gulf Wilderness Area, NH | C112: 2022 | D112: =IF(D111="","",D111-M90) -> 19.53733411 | I112: 7.647414679 | L112: =IF(L111="","",L111-N90) -> 18.24873039 | Q112: 5.710774068 | R112: 14.48146329 | S112: 15.57896329
A113: GRGU | B113: Great Gulf Wilderness Area, NH | C113: 2023 | D113: =IF(D112="","",D112-M90) -> 19.35772273 | I113: 7.647414679 | L113: =IF(L112="","",L112-N90) -> 18.04698637 | Q113: 5.602311723 | R113: 14.06788607 | S113: 15.17080274
A114: GRGU | B114: Great Gulf Wilderness Area, NH | C114: 2024 | D114: =IF(D113="","",D113-M90) -> 19.17811135 | I114: 7.647414679 | L114: =IF(L113="","",L113-N90) -> 17.84524235 | Q114: 5.493849379 | R114: 13.65430886 | S114: 14.76264219
A115: GRGU | B115: Great Gulf Wilderness Area, NH | C115: 2025 | D115: =IF(D114="","",D114-M90) -> 18.99849997 | I115: 7.647414679 | L115: =IF(L114="","",L114-N90) -> 17.64349833 | Q115: 5.385387034 | R115: 13.24073164 | S115: 14.35448164
A116: GRGU | B116: Great Gulf Wilderness Area, NH | C116: 2026 | D116: =IF(D115="","",D115-M90) -> 18.81888859 | I116: 7.647414679 | L116: =IF(L115="","",L115-N90) -> 17.44175431 | Q116: 5.276924689 | R116: 12.82715443 | S116: 13.9463211
A117: GRGU | B117: Great Gulf Wilderness Area, NH | C117: 2027 | D117: =IF(D116="","",D116-M90) -> 18.63927721 | I117: 7.647414679 | L117: =IF(L116="","",L116-N90) -> 17.24001029 | Q117: 5.168462345 | R117: 12.41357721 | S117: 13.53816055
A118: GRGU | B118: Great Gulf Wilderness Area, NH | C118: 2028 | D118: =IF(D117="","",D117-M90) -> 18.45966583 | I118: 7.647414679 | L118: =IF(L117="","",L117-N90) -> 17.03826627 | Q118: 5.06 | R118: 12 | S118: 13.13 | T118: 12 | U118: 13.13
A119: LYBR_RHTS | B119: Lye Brook Wilderness, VT | C119: 2000 | E119: 23.45318667 | G119: 6.49258 | J119: 23.10141381 | M119: =(F123-O119)/60 -> 0.2118647878 | N119: =(K123-P119)/60 -> 0.2220481567 | O119: =AC10 -> 11.73485629 | P119: =AE10 -> 10.24306624
A120: LYBR_RHTS | B120: Lye Brook Wilderness, VT | C120: 2001 | E120: 26.3251395 | G120: 6.4714185 | J120: 25.4804045
A121: LYBR_RHTS | B121: Lye Brook Wilderness, VT | C121: 2002 | E121: 25.52047043 | G121: 6.427855909 | J121: 23.46484391
A122: LYBR_RHTS | B122: Lye Brook Wilderness, VT | C122: 2003 | E122: 24.02294208 | G122: 5.831362174 | J122: 23.36971417
A123: LYBR_RHTS | B123: Lye Brook Wilderness, VT | C123: 2004 | D123: =IF(F123="","",F123) -> 24.44674356 | E123: 22.91197909 | F123: 24.44674356 | G123: 6.609866818 | H123: 6.36661668 | I123: =IF(H123="","",H123) -> 6.36661668 | J123: 22.41340182 | K123: 23.56595564 | L123: =IF(K123="","",K123) -> 23.56595564 | Q123: 6.366616622 | R123: 23.56595584 | S123: 24.44674372
A124: LYBR_RHTS | B124: Lye Brook Wilderness, VT | C124: 2005 | D124: =IF(D123="","",D123-M119) -> 24.23487877 | E124: 26.03746571 | F124: 24.96359936 | G124: 5.446195 | H124: 6.15733968 | I124: =I123 -> 6.36661668 | J124: 25.91868714 | K124: 24.12941031 | L124: =IF(L123="","",L123-N119) -> 23.34390748 | Q124: 6.262174263 | R124: 23.15404101 | S124: 24.01854607
A125: LYBR_RHTS | B125: Lye Brook Wilderness, VT | C125: 2006 | D125: =IF(D124="","",D124-M119) -> 24.02301398 | E125: 22.43283087 | F125: 24.18513764 | G125: 5.243543182 | H125: 5.911764617 | I125: =I124 -> 6.36661668 | J125: 21.1869813 | K125: 23.27072567 | L125: =IF(L124="","",L124-N119) -> 23.12185933 | Q125: 6.157731904 | R125: 22.74212618 | S125: 23.59034841
A126: LYBR_RHTS | B126: Lye Brook Wilderness, VT | C126: 2007 | D126: =IF(D125="","",D125-M119) -> 23.81114919 | E126: 25.44747048 | F126: 24.17053765 | G126: 5.744722381 | H126: 5.775137911 | I126: 6.36661668 | J126: 25.25619762 | K126: 23.62899641 | L126: =IF(L125="","",L125-N119) -> 22.89981117 | Q126: 6.053289544 | R126: 22.33021136 | S126: 23.16215076
A127: LYBR_RHTS | B127: Lye Brook Wilderness, VT | C127: 2008 | D127: =IF(D126="","",D126-M119) -> 23.5992844 | F127: 24.20743654 | H127: 5.761081845 | I127: 6.36661668 | K127: 23.69381697 | L127: =IF(L126="","",L126-N119) -> 22.67776301 | Q127: 5.948847185 | R127: 21.91829653 | S127: 22.7339531
A128: LYBR_RHTS | B128: Lye Brook Wilderness, VT | C128: 2009 | D128: =IF(D127="","",D127-M119) -> 23.38741962 | E128: 18.43730476 | F128: 23.08876796 | G128: 4.109623 | H128: 5.136020891 | I128: 6.36661668 | J128: 17.8544919 | K128: 22.55408949 | L128: =IF(L127="","",L127-N119) -> 22.45571486 | Q128: 5.844404826 | R128: 21.50638171 | S128: 22.30575545
A129: LYBR_RHTS | B129: Lye Brook Wilderness, VT | C129: 2010 | D129: =IF(D128="","",D128-M119) -> 23.17555483 | E129: 19.95879391 | F129: 21.56910001 | G129: 4.083329091 | H129: 4.795304413 | I129: 6.36661668 | J129: 19.08975348 | K129: 20.84685608 | L129: =IF(L128="","",L128-N119) -> 22.2336667 | Q129: 5.739962467 | R129: 21.09446688 | S129: 21.87755779
A130: LYBR_RHTS | B130: Lye Brook Wilderness, VT | C130: 2011 | D130: =IF(D129="","",D129-M119) -> 22.96369004 | E130: 19.37553286 | F130: 20.8047755 | G130: 5.399928 | H130: 4.834400618 | I130: 6.36661668 | J130: 18.26713476 | K130: 20.11689444 | L130: =IF(L129="","",L129-N119) -> 22.01161854 | Q130: 5.635520107 | R130: 20.68255205 | S130: 21.44936014
A131: LYBR_RHTS | B131: Lye Brook Wilderness, VT | C131: 2012 | D131: =IF(D130="","",D130-M119) -> 22.75182525 | E131: 18.57249091 | F131: 19.08603061 | G131: 5.49277619 | H131: 4.77141407 | I131: 6.36661668 | J131: 17.78050318 | K131: 18.24797083 | L131: =IF(L130="","",L130-N119) -> 21.78957039 | Q131: 5.531077748 | R131: 20.27063723 | S131: 21.02116248
A132: LYBR_RHTS | B132: Lye Brook Wilderness, VT | C132: 2013 | D132: =IF(D131="","",D131-M119) -> 22.53996047 | E132: 17.45672042 | F132: 18.76016857 | G132: 5.352656957 | H132: 4.887662648 | I132: 6.36661668 | J132: 17.32128167 | K132: 18.062633 | L132: =IF(L131="","",L131-N119) -> 21.56752223 | Q132: 5.426635389 | R132: 19.8587224 | S132: 20.59296483
A133: LYBR_RHTS | B133: Lye Brook Wilderness, VT | C133: 2014 | D133: =IF(D132="","",D132-M119) -> 22.32809568 | E133: 17.14197167 | F133: 18.50110195 | G133: 5.004226667 | H133: 5.066583381 | I133: 6.36661668 | J133: 16.61486833 | K133: 17.81470828 | L133: =IF(L132="","",L132-N119) -> 21.34547407 | Q133: 5.32219303 | R133: 19.44680757 | S133: 20.16476717
A134: LYBR_RHTS | B134: Lye Brook Wilderness, VT | C134: 2015 | D134: =IF(D133="","",D133-M119) -> 22.11623089 | E134: 17.30756727 | F134: 17.97085662 | G134: 5.202523182 | H134: 5.290422199 | I134: 6.36661668 | J134: 15.35650227 | K134: 17.06805804 | L134: =IF(L133="","",L133-N119) -> 21.12342592 | Q134: 5.21775067 | R134: 19.03489275 | S134: 19.73656952
A135: LYBR_RHTS | B135: Lye Brook Wilderness, VT | C135: 2016 | D135: =IF(D134="","",D134-M119) -> 21.9043661 | E135: 15.12532045 | F135: 17.12081414 | G135: 4.877691429 | H135: 5.185974885 | I135: 6.36661668 | J135: 13.41589182 | K135: 16.09780945 | L135: =IF(L134="","",L134-N119) -> 20.90137776 | Q135: 5.113308311 | R135: 18.62297792 | S135: 19.30837186
A136: LYBR_RHTS | B136: Lye Brook Wilderness, VT | C136: 2017 | D136: =IF(D135="","",D135-M119) -> 21.69250131 | E136: 15.63902417 | F136: =IF(COUNT(E132:E136)<3,"",AVERAGE(E132:E136)) -> 16.5341208 | G136: 5.43004 | H136: =IF(COUNT(G132:G136)<3,"",AVERAGE(G132:G136)) -> 5.173427647 | I136: 6.36661668 | J136: 13.94762208 | K136: =IF(COUNT(J132:J136)<3,"",AVERAGE(J132:J136)) -> 15.33123323 | L136: =IF(L135="","",L135-N119) -> 20.6793296 | Q136: 5.008865952 | R136: 18.21106309 | S136: 18.88017421
A137: LYBR_RHTS | B137: Lye Brook Wilderness, VT | C137: 2018 | D137: =IF(D136="","",D136-M119) -> 21.48063653 | E137: 15.62308208 | F137: 16.16739313 | G137: 4.622517391 | H137: 5.027399734 | I137: 6.36661668 | J137: 14.31025417 | K137: 14.72902773 | L137: =IF(L136="","",L136-N119) -> 20.45728145 | Q137: 4.904423593 | R137: 17.79914827 | S137: 18.45197655
A138: LYBR_RHTS | B138: Lye Brook Wilderness, VT | C138: 2019 | D138: =IF(D137="","",D137-M119) -> 21.26877174 | E138: 14.42764 | F138: 15.6245268 | G138: 4.246740952 | H138: 4.875902591 | I138: 6.36661668 | J138: 13.28066636 | K138: 14.06218734 | L138: =IF(L137="","",L137-N119) -> 20.23523329 | Q138: 4.799981233 | R138: 17.38723344 | S138: 18.0237789
A139: LYBR_RHTS | B139: Lye Brook Wilderness, VT | C139: 2020 | D139: =IF(D138="","",D138-M119) -> 21.05690695 | E139: 13.61660917 | F139: 14.88633517 | G139: 4.81652087 | H139: 4.798702128 | I139: 6.36661668 | J139: 12.46400042 | K139: 13.48368697 | L139: =IF(L138="","",L138-N119) -> 20.01318513 | Q139: 4.695538874 | R139: 16.97531861 | S139: 17.59558124
A140: LYBR_RHTS | B140: Lye Brook Wilderness, VT | C140: 2021 | D140: =IF(D139="","",D139-M119) -> 20.84504216 | E140: 15.41720739 | F140: 14.94471256 | G140: 3.965802273 | H140: 4.616324297 | I140: 6.36661668 | J140: 13.30482565 | K140: 13.46147374 | L140: =IF(L139="","",L139-N119) -> 19.79113698 | Q140: 4.591096515 | R140: 16.56340379 | S140: 17.16738359
A141: LYBR_RHTS | B141: Lye Brook Wilderness, VT | C141: 2022 | D141: =IF(D140="","",D140-M119) -> 20.63317737 | I141: 6.36661668 | L141: =IF(L140="","",L140-N119) -> 19.56908882 | Q141: 4.486654156 | R141: 16.15148896 | S141: 16.73918593
A142: LYBR_RHTS | B142: Lye Brook Wilderness, VT | C142: 2023 | D142: =IF(D141="","",D141-M119) -> 20.42131259 | I142: 6.36661668 | L142: =IF(L141="","",L141-N119) -> 19.34704066 | Q142: 4.382211796 | R142: 15.73957413 | S142: 16.31098828
A143: LYBR_RHTS | B143: Lye Brook Wilderness, VT | C143: 2024 | D143: =IF(D142="","",D142-M119) -> 20.2094478 | I143: 6.36661668 | L143: =IF(L142="","",L142-N119) -> 19.12499251 | Q143: 4.277769437 | R143: 15.32765931 | S143: 15.88279062
A144: LYBR_RHTS | B144: Lye Brook Wilderness, VT | C144: 2025 | D144: =IF(D143="","",D143-M119) -> 19.99758301 | I144: 6.36661668 | L144: =IF(L143="","",L143-N119) -> 18.90294435 | Q144: 4.173327078 | R144: 14.91574448 | S144: 15.45459297
A145: LYBR_RHTS | B145: Lye Brook Wilderness, VT | C145: 2026 | D145: =IF(D144="","",D144-M119) -> 19.78571822 | I145: 6.36661668 | L145: =IF(L144="","",L144-N119) -> 18.68089619 | Q145: 4.068884719 | R145: 14.50382965 | S145: 15.02639531
A146: LYBR_RHTS | B146: Lye Brook Wilderness, VT | C146: 2027 | D146: =IF(D145="","",D145-M119) -> 19.57385344 | I146: 6.36661668 | L146: =IF(L145="","",L145-N119) -> 18.45884804 | Q146: 3.964442359 | R146: 14.09191483 | S146: 14.59819766
A147: LYBR_RHTS | B147: Lye Brook Wilderness, VT | C147: 2028 | D147: =IF(D146="","",D146-M119) -> 19.36198865 | I147: 6.36661668 | L147: =IF(L146="","",L146-N119) -> 18.23679988 | Q147: 3.86 | R147: 13.68 | S147: 14.17 | T147: 13.68 | U147: 14.17
A148: MOOS | B148: Moosehorn Wilderness Area, ME | C148: 2000 | E148: 20.63343476 | G148: 8.9378485 | J148: 19.47935286 | M148: =(F152-O148)/60 -> 0.1616194393 | N148: =(K152-P148)/60 -> 0.1779385677 | O148: =AC12 -> 12.00961763 | P148: =AE12 -> 9.976087341
A149: MOOS | B149: Moosehorn Wilderness Area, ME | C149: 2001 | E149: 22.13555273 | G149: 9.307401429 | J149: 21.30104545
A150: MOOS | B150: Moosehorn Wilderness Area, ME | C150: 2002 | E150: 23.06511917 | G150: 9.11646875 | J150: 22.12338625
A151: MOOS | B151: Moosehorn Wilderness Area, ME | C151: 2003 | E151: 22.50170125 | G151: 9.484773333 | J151: 20.95643125
A152: MOOS | B152: Moosehorn Wilderness Area, ME | C152: 2004 | D152: =IF(F152="","",F152) -> 21.70678398 | E152: 20.198112 | F152: 21.70678398 | G152: 8.933957083 | H152: 9.156089819 | I152: =IF(H152="","",H152) -> 9.156089819 | J152: 19.4017912 | K152: 20.6524014 | L152: =IF(K152="","",K152) -> 20.6524014 | Q152: 9.156090087 | R152: 20.65977291 | S152: 21.72229558
A153: MOOS | B153: Moosehorn Wilderness Area, ME | C153: 2005 | D153: =IF(D152="","",D152-M148) -> 21.54516454 | E153: 22.36160833 | F153: 22.0524187 | G153: 7.985110417 | H153: 8.965542202 | I153: =I152 -> 9.156089819 | J153: 20.92053083 | K153: 20.940637 | L153: =IF(L152="","",L152-N148) -> 20.47446283 | Q153: 9.043336333 | R153: 20.34561571 | S153: 21.41344993
A154: MOOS | B154: Moosehorn Wilderness Area, ME | C154: 2006 | D154: =IF(D153="","",D153-M148) -> 21.3835451 | E154: 21.55216833 | F154: 21.93574182 | G154: 8.60434625 | H154: 8.824931167 | I154: =I153 -> 9.156089819 | J154: 20.71933208 | K154: 20.82429432 | L154: =IF(L153="","",L153-N148) -> 20.29652427 | Q154: 8.93058258 | R154: 20.0314585 | S154: 21.10460428
A155: MOOS | B155: Moosehorn Wilderness Area, ME | C155: 2007 | D155: =IF(D154="","",D154-M148) -> 21.22192566 | E155: 19.24371826 | F155: 21.17146164 | G155: 7.793849545 | H155: 8.560407326 | I155: 9.156089819 | J155: 18.50287348 | K155: 20.10019177 | L155: =IF(L154="","",L154-N148) -> 20.1185857 | Q155: 8.817828826 | R155: 19.7173013 | S155: 20.79575863
A156: MOOS | B156: Moosehorn Wilderness Area, ME | C156: 2008 | D156: =IF(D155="","",D155-M148) -> 21.06030622 | E156: 18.6238024 | F156: 20.39588187 | G156: 7.823734583 | H156: 8.228199576 | I156: 9.156089819 | J156: 17.5068908 | K156: 19.41028368 | L156: =IF(L155="","",L155-N148) -> 19.94064713 | Q156: 8.705075072 | R156: 19.40314409 | S156: 20.48691298
A157: MOOS | B157: Moosehorn Wilderness Area, ME | C157: 2009 | D157: =IF(D156="","",D156-M148) -> 20.89868678 | E157: 17.6108932 | F157: 19.87843811 | G157: 6.834975417 | H157: 7.808403242 | I157: 9.156089819 | J157: 17.013814 | K157: 18.93268824 | L157: =IF(L156="","",L156-N148) -> 19.76270856 | Q157: 8.592321319 | R157: 19.08898689 | S157: 20.17806733
A158: MOOS | B158: Moosehorn Wilderness Area, ME | C158: 2010 | D158: =IF(D157="","",D157-M148) -> 20.73706735 | E158: 17.19888083 | F158: 18.84589261 | G158: 5.979026522 | H158: 7.407186463 | I158: 9.156089819 | J158: 16.45277875 | K158: 18.03913782 | L158: =IF(L157="","",L157-N148) -> 19.58477 | Q158: 8.479567565 | R158: 18.77482968 | S158: 19.86922168
A159: MOOS | B159: Moosehorn Wilderness Area, ME | C159: 2011 | D159: =IF(D158="","",D158-M148) -> 20.57544791 | E159: 17.39905739 | F159: 18.01527042 | G159: 6.974114545 | H159: 7.081140123 | I159: 9.156089819 | J159: 16.38360087 | K159: 17.17199158 | L159: =IF(L158="","",L158-N148) -> 19.40683143 | Q159: 8.366813811 | R159: 18.46067248 | S159: 19.56037603
A160: MOOS | B160: Moosehorn Wilderness Area, ME | C160: 2012 | D160: =IF(D159="","",D159-M148) -> 20.41382847 | E160: 16.13373875 | F160: 17.39327451 | G160: 7.321388696 | H160: 6.986647953 | I160: 9.156089819 | J160: 14.73847958 | K160: 16.4191128 | L160: =IF(L159="","",L159-N148) -> 19.22889286 | Q160: 8.254060058 | R160: 18.14651528 | S160: 19.25153039
A161: MOOS | B161: Moosehorn Wilderness Area, ME | C161: 2013 | D161: =IF(D160="","",D160-M148) -> 20.25220903 | E161: 15.91860318 | F161: 16.85223467 | G161: 6.545156364 | H161: 6.730932309 | I161: 9.156089819 | J161: 14.42345818 | K161: 15.80242628 | L161: =IF(L160="","",L160-N148) -> 19.05095429 | Q161: 8.141306304 | R161: 17.83235807 | S161: 18.94268474
A162: MOOS | B162: Moosehorn Wilderness Area, ME | C162: 2014 | D162: =IF(D161="","",D161-M148) -> 20.09058959 | E162: 16.04175 | F162: 16.53840603 | G162: 6.900479048 | H162: 6.744033035 | I162: 9.156089819 | J162: 14.15397682 | K162: 15.23045884 | L162: =IF(L161="","",L161-N148) -> 18.87301573 | Q162: 8.028552551 | R162: 17.51820087 | S162: 18.63383909
A163: MOOS | B163: Moosehorn Wilderness Area, ME | C163: 2015 | D163: =IF(D162="","",D162-M148) -> 19.92897015 | E163: 16.37155227 | F163: 16.37294032 | G163: 6.638016667 | H163: 6.875831064 | I163: 9.156089819 | J163: 14.525515 | K163: 14.84500609 | L163: =IF(L162="","",L162-N148) -> 18.69507716 | Q163: 7.915798797 | R163: 17.20404366 | S163: 18.32499344
A164: MOOS | B164: Moosehorn Wilderness Area, ME | C164: 2016 | D164: =IF(D163="","",D163-M148) -> 19.76735071 | E164: 13.86045261 | F164: 15.66521936 | G164: 6.089303636 | H164: 6.698868882 | I164: 9.156089819 | J164: 12.56302304 | K164: 14.08089053 | L164: =IF(L163="","",L163-N148) -> 18.51713859 | Q164: 7.803045043 | R164: 16.88988646 | S164: 18.01614779
A165: MOOS | B165: Moosehorn Wilderness Area, ME | C165: 2017 | D165: =IF(D164="","",D164-M148) -> 19.60573127 | E165: 14.89176542 | F165: 15.4168247 | G165: 6.768826522 | H165: 6.588356447 | I165: 9.156089819 | J165: 12.12865292 | K165: 13.55892519 | L165: =IF(L164="","",L164-N148) -> 18.33920002 | Q165: 7.69029129 | R165: 16.57572925 | S165: 17.70730214
A166: MOOS | B166: Moosehorn Wilderness Area, ME | C166: 2018 | D166: =IF(D165="","",D165-M148) -> 19.44411183 | E166: 14.72965375 | F166: 15.17903481 | G166: 6.573346957 | H166: 6.593994566 | I166: 9.156089819 | J166: 13.23465333 | K166: 13.32116422 | L166: =IF(L165="","",L165-N148) -> 18.16126145 | Q166: 7.577537536 | R166: 16.26157205 | S166: 17.39845649
A167: MOOS | B167: Moosehorn Wilderness Area, ME | C167: 2019 | D167: =IF(D166="","",D166-M148) -> 19.28249239 | E167: 13.78919286 | F167: 14.72852338 | G167: 6.30583381 | H167: 6.475065518 | I167: 9.156089819 | J167: 12.49223857 | K167: 12.98881657 | L167: =IF(L166="","",L166-N148) -> 17.98332289 | Q167: 7.464783783 | R167: 15.94741484 | S167: 17.08961084
A168: MOOS | B168: Moosehorn Wilderness Area, ME | C168: 2020 | D168: =IF(D167="","",D167-M148) -> 19.12087295 | F168: 14.31776616 | H168: 6.434327731 | I168: 9.156089819 | K168: 12.60464197 | L168: =IF(L167="","",L167-N148) -> 17.80538432 | Q168: 7.352030029 | R168: 15.63325764 | S168: 16.78076519
A169: MOOS | B169: Moosehorn Wilderness Area, ME | C169: 2021 | D169: =IF(D168="","",D168-M148) -> 18.95925351 | E169: 15.51926042 | F169: 14.73246811 | G169: 5.902976522 | H169: 6.387745952 | I169: 9.156089819 | J169: 12.83046833 | K169: 12.67150329 | L169: =IF(L168="","",L168-N148) -> 17.62744575 | Q169: 7.239276275 | R169: 15.31910043 | S169: 16.47191954
A170: MOOS | B170: Moosehorn Wilderness Area, ME | C170: 2022 | D170: =IF(D169="","",D169-M148) -> 18.79763407 | I170: 9.156089819 | L170: =IF(L169="","",L169-N148) -> 17.44950718 | Q170: 7.126522522 | R170: 15.00494323 | S170: 16.16307389
A171: MOOS | B171: Moosehorn Wilderness Area, ME | C171: 2023 | D171: =IF(D170="","",D170-M148) -> 18.63601464 | I171: 9.156089819 | L171: =IF(L170="","",L170-N148) -> 17.27156862 | Q171: 7.013768768 | R171: 14.69078602 | S171: 15.85422825
A172: MOOS | B172: Moosehorn Wilderness Area, ME | C172: 2024 | D172: =IF(D171="","",D171-M148) -> 18.4743952 | I172: 9.156089819 | L172: =IF(L171="","",L171-N148) -> 17.09363005 | Q172: 6.901015014 | R172: 14.37662882 | S172: 15.5453826
A173: MOOS | B173: Moosehorn Wilderness Area, ME | C173: 2025 | D173: =IF(D172="","",D172-M148) -> 18.31277576 | I173: 9.156089819 | L173: =IF(L172="","",L172-N148) -> 16.91569148 | Q173: 6.788261261 | R173: 14.06247161 | S173: 15.23653695
A174: MOOS | B174: Moosehorn Wilderness Area, ME | C174: 2026 | D174: =IF(D173="","",D173-M148) -> 18.15115632 | I174: 9.156089819 | L174: =IF(L173="","",L173-N148) -> 16.73775291 | Q174: 6.675507507 | R174: 13.74831441 | S174: 14.9276913
A175: MOOS | B175: Moosehorn Wilderness Area, ME | C175: 2027 | D175: =IF(D174="","",D174-M148) -> 17.98953688 | I175: 9.156089819 | L175: =IF(L174="","",L174-N148) -> 16.55981435 | Q175: 6.562753754 | R175: 13.4341572 | S175: 14.61884565
A176: MOOS | B176: Moosehorn Wilderness Area, ME | C176: 2028 | D176: =IF(D175="","",D175-M148) -> 17.82791744 | I176: 9.156089819 | L176: =IF(L175="","",L175-N148) -> 16.38187578 | Q176: 6.45 | R176: 13.12 | S176: 14.31 | T176: 13.12 | U176: 14.31
A177: SHEN | B177: Shenandoah National Park, VA | C177: 2000 | E177: 28.5336745 | G177: 11.07940368 | J177: 27.229265 | M177: =(F181-O177)/60 -> 0.2992184913 | N177: =(K181-P177)/60 -> 0.3133679472 | O177: =AC13 -> 11.35450585 | P177: =AE13 -> 9.520419573
A178: SHEN | B178: Shenandoah National Park, VA | C178: 2001 | E178: 29.20763773 | G178: 13.21069429 | J178: 27.61789227
A179: SHEN | B179: Shenandoah National Park, VA | C179: 2002 | E179: 30.53805917 | G179: 11.4926087 | J179: 29.89047083
A180: SHEN | B180: Shenandoah National Park, VA | C180: 2003 | E180: 28.94342 | G180: 9.47942 | J180: 27.87465087
A181: SHEN | B181: Shenandoah National Park, VA | C181: 2004 | D181: =IF(F181="","",F181) -> 29.30761532 | E181: 29.31528522 | F181: 29.30761532 | G181: 9.553939565 | H181: 10.96321325 | I181: =IF(H181="","",H181) -> 10.96321325 | J181: 29.00020304 | K181: 28.3224964 | L181: =IF(K181="","",K181) -> 28.3224964 | Q181: 10.92740139 | R181: 28.32249659 | S181: 29.30761584
A182: SHEN | B182: Shenandoah National Park, VA | C182: 2005 | D182: =IF(D181="","",D181-M177) -> 29.00839683 | E182: 30.75075542 | F182: 29.75103151 | G182: 10.48201913 | H182: 10.84373634 | I182: =I181 -> 10.96321325 | J182: 30.51065458 | K182: 28.97877432 | L182: =IF(L181="","",L181-N177) -> 28.00912846 | Q182: 10.75667634 | R182: 27.73614257 | S182: 28.71854851
A183: SHEN | B183: Shenandoah National Park, VA | C183: 2006 | D183: =IF(D182="","",D182-M177) -> 28.70917834 | E183: 29.29685364 | F183: 29.76887469 | G183: 10.59241095 | H183: 10.32007967 | I183: =I182 -> 10.96321325 | J183: 27.75384773 | K183: 29.00596541 | L183: =IF(L182="","",L182-N177) -> 27.69576051 | Q183: 10.58595128 | R183: 27.14978854 | S183: 28.12948118
A184: SHEN | B184: Shenandoah National Park, VA | C184: 2007 | D184: =IF(D183="","",D183-M177) -> 28.40995985 | E184: 28.79225 | F184: 29.41971285 | G184: 11.12992478 | H184: 10.24754289 | I184: 10.96321325 | J184: 28.17133667 | K184: 28.66213858 | L184: =IF(L183="","",L183-N177) -> 27.38239256 | Q184: 10.41522622 | R184: 26.56343452 | S184: 27.54041386
A185: SHEN | B185: Shenandoah National Park, VA | C185: 2008 | D185: =IF(D184="","",D184-M177) -> 28.11074136 | E185: 25.6484084 | F185: 28.76071053 | G185: 8.158955 | H185: 9.983449886 | I185: 10.96321325 | J185: 24.5880556 | K185: 28.00481952 | L185: =IF(L184="","",L184-N177) -> 27.06902462 | Q185: 10.24450116 | R185: 25.97708049 | S185: 26.95134653
A186: SHEN | B186: Shenandoah National Park, VA | C186: 2009 | D186: =IF(D185="","",D185-M177) -> 27.81152287 | E186: 21.81039958 | F186: 27.25973341 | G186: 8.233323478 | H186: 9.719326669 | I186: 10.96321325 | J186: 21.19806667 | K186: 26.44439225 | L186: =IF(L185="","",L185-N177) -> 26.75565667 | Q186: 10.0737761 | R186: 25.39072647 | S186: 26.3622792
A187: SHEN | B187: Shenandoah National Park, VA | C187: 2010 | D187: =IF(D186="","",D186-M177) -> 27.51230437 | E187: 23.5127 | F187: 25.81212232 | G187: 9.786919091 | H187: 9.580306661 | I187: 10.96321325 | J187: 22.12166174 | K187: 24.76659368 | L187: =IF(L186="","",L186-N177) -> 26.44228872 | Q187: 9.903051046 | R187: 24.80437244 | S187: 25.77321188
A188: SHEN | B188: Shenandoah National Park, VA | C188: 2011 | D188: =IF(D187="","",D187-M177) -> 27.21308588 | E188: 23.49688792 | F188: 24.65212918 | G188: 7.869442174 | H188: 9.035712905 | I188: 10.96321325 | J188: 22.10165333 | K188: 23.6361548 | L188: =IF(L187="","",L187-N177) -> 26.12892077 | Q188: 9.732325988 | R188: 24.21801842 | S188: 25.18414455
A189: SHEN | B189: Shenandoah National Park, VA | C189: 2012 | D189: =IF(D188="","",D188-M177) -> 26.91386739 | E189: 20.51539591 | F189: 22.99675836 | G189: 9.625093333 | H189: 8.734746615 | I189: 10.96321325 | J189: 19.29512455 | K189: 21.86091238 | L189: =IF(L188="","",L188-N177) -> 25.81555283 | Q189: 9.56160093 | R189: 23.63166439 | S189: 24.59507722
A190: SHEN | B190: Shenandoah National Park, VA | C190: 2013 | D190: =IF(D189="","",D189-M177) -> 26.6146489 | E190: 19.78047826 | F190: 21.82317233 | G190: 7.501552727 | H190: 8.603266161 | I190: 10.96321325 | J190: 18.88401043 | K190: 20.72010334 | L190: =IF(L189="","",L189-N177) -> 25.50218488 | Q190: 9.390875871 | R190: 23.04531037 | S190: 24.0060099
A191: SHEN | B191: Shenandoah National Park, VA | C191: 2014 | D191: =IF(D190="","",D190-M177) -> 26.31543041 | E191: 19.52213583 | F191: 21.36551958 | G191: 8.017650435 | H191: 8.560131552 | I191: 10.96321325 | J191: 18.58134083 | K191: 20.19675818 | L191: =IF(L190="","",L190-N177) -> 25.18881693 | Q191: 9.220150813 | R191: 22.45895634 | S191: 23.41694257
A192: SHEN | B192: Shenandoah National Park, VA | C192: 2015 | D192: =IF(D191="","",D191-M177) -> 26.01621192 | E192: 20.00780458 | F192: 20.6645405 | G192: 6.498550435 | H192: 7.902457821 | I192: 10.96321325 | J192: 18.64900167 | K192: 19.50222616 | L192: =IF(L191="","",L191-N177) -> 24.87544898 | Q192: 9.049425755 | R192: 21.87260232 | S192: 22.82787524
A193: SHEN | B193: Shenandoah National Park, VA | C193: 2016 | D193: =IF(D192="","",D192-M177) -> 25.71699343 | E193: 18.71442652 | F193: 19.70804822 | G193: 7.316840909 | H193: 7.791937568 | I193: 10.96321325 | J193: 16.59485565 | K193: 18.40086663 | L193: =IF(L192="","",L192-N177) -> 24.56208104 | Q193: 8.878700697 | R193: 21.2862483 | S193: 22.23880792
A194: SHEN | B194: Shenandoah National Park, VA | C194: 2017 | D194: =IF(D193="","",D193-M177) -> 25.41777494 | E194: 17.81030708 | F194: 19.16703046 | G194: 6.353071304 | H194: 7.137533162 | I194: 10.96321325 | J194: 16.13652583 | K194: 17.76914688 | L194: =IF(L193="","",L193-N177) -> 24.24871309 | Q194: 8.707975639 | R194: 20.69989427 | S194: 21.64974059
A195: SHEN | B195: Shenandoah National Park, VA | C195: 2018 | D195: =IF(D194="","",D194-M177) -> 25.11855644 | E195: 17.55161826 | F195: 18.72125846 | G195: 6.086503636 | H195: 6.854523344 | I195: 10.96321325 | J195: 15.3729413 | K195: 17.06693306 | L195: =IF(L194="","",L194-N177) -> 23.93534514 | Q195: 8.537250581 | R195: 20.11354025 | S195: 21.06067326
A196: SHEN | B196: Shenandoah National Park, VA | C196: 2019 | D196: =IF(D195="","",D195-M177) -> 24.81933795 | E196: 17.35240208 | F196: 18.28731171 | G196: 6.437226522 | H196: 6.538438561 | I196: 10.96321325 | J196: 15.16197 | K196: 16.38305889 | L196: =IF(L195="","",L195-N177) -> 23.6219772 | Q196: 8.366525523 | R196: 19.52718622 | S196: 20.47160594
A197: SHEN | B197: Shenandoah National Park, VA | C197: 2020 | D197: =IF(D196="","",D196-M177) -> 24.52011946 | E197: 15.14399 | F197: 17.31454879 | G197: 5.35498375 | H197: =IF(COUNT(G193:G197)<3,"",AVERAGE(G193:G197)) -> 6.309725224 | I197: 10.96321325 | J197: 13.2715316 | K197: 15.30756488 | L197: =IF(L196="","",L196-N177) -> 23.30860925 | Q197: 8.195800465 | R197: 18.9408322 | S197: 19.88253861
A198: SHEN | B198: Shenandoah National Park, VA | C198: 2021 | D198: =IF(D197="","",D197-M177) -> 24.22090097 | E198: 17.8112387 | F198: 17.13391122 | G198: 7.243582273 | H198: =IF(COUNT(G194:G198)<3,"",AVERAGE(G194:G198)) -> 6.295073497 | I198: 10.96321325 | J198: 13.78105348 | K198: 14.74480444 | L198: =IF(L197="","",L197-N177) -> 22.9952413 | Q198: 8.025075407 | R198: 18.35447817 | S198: 19.29347129
A199: SHEN | B199: Shenandoah National Park, VA | C199: 2022 | D199: =IF(D198="","",D198-M177) -> 23.92168248 | I199: 10.96321325 | L199: =IF(L198="","",L198-N177) -> 22.68187335 | Q199: 7.854350349 | R199: 17.76812415 | S199: 18.70440396
A200: SHEN | B200: Shenandoah National Park, VA | C200: 2023 | D200: =IF(D199="","",D199-M177) -> 23.62246399 | I200: 10.96321325 | L200: =IF(L199="","",L199-N177) -> 22.36850541 | Q200: 7.68362529 | R200: 17.18177012 | S200: 18.11533663
... 672 more rows
